,Service Area Categorisation,Service Division Categorisation,Responsible Unit,Expenses Types,Detailed Expenses Type,Expense Code,Narrative,Payment Date,Transaction Number,Order ID,Amount,Capital/Revenue,Supplier Name,Supplier ID,Customer ID
Schools Total,School Group 2 � Pupil Capacity 144-314,MCC Schools,Ysgol Gymraeg Y Fenni,Supplies & Services,"Equipment, Furniture and Materials",Cleaning Materials.,,27/10/2022,11065685,80089452,645,R,AppleGreen CarpetClean,2200949,
Schools Total,School Group 7 � Pupil Capacity 501-1800,MCC Schools,King Henry VIII Comprehensive,Employees,Indirect Employee Expenses,Replacement,,10/10/2022,11060554,80088918,227.3,R,Teaching Personnel,249395,
Schools Total,School Group 7 � Pupil Capacity 501-1800,MCC Schools,King Henry VIII Comprehensive,Employees,Indirect Employee Expenses,Replacement,,10/10/2022,11060553,80088917,125,R,Affinity Workforce Solutions Ltd,292607,
Schools Total,School Group 7 � Pupil Capacity 501-1800,MCC Schools,King Henry VIII Comprehensive,Employees,Indirect Employee Expenses,Replacement,,10/10/2022,11060567,80088978,194,R,Vetro Recruitment Limited,299145,
Schools Total,School Group 7 � Pupil Capacity 501-1800,MCC Schools,King Henry VIII Comprehensive,Employees,Indirect Employee Expenses,Replacement,,10/10/2022,11060567,80088978,582,R,Vetro Recruitment Limited,299145,
Schools Total,School Group 7 � Pupil Capacity 501-1800,MCC Schools,King Henry VIII Comprehensive,Premises,"Repairs, Alterations & Maintenance of Buildings",Skip Hire,,10/10/2022,11060546,80088010,105,R,Thomas Waste Management Ltd,217964,
Schools Total,School Group 7 � Pupil Capacity 501-1800,MCC Schools,King Henry VIII Comprehensive,Employees,Indirect Employee Expenses,Replacement,,10/10/2022,11060554,80088918,568.25,R,Teaching Personnel,249395,
"Facilities, Fleet & Decarbonisation",Transport Department,Communities & Place,Transport,Supplies & Services,"Equipment, Furniture and Materials",Small Plant & Tools.,,17/10/2022,11061183,0,30.6,R,Mon & Border Motor Factors Ltd,200544,
Adult Services,Direct Care Residential,Social Care and Health,Mardy Park,Supplies & Services,"Equipment, Furniture and Materials",Cleaning Materials.,,12/10/2022,11059945,10112475,62.12,R,Newhall Janitorial Ltd,200912,
Adult Services,Direct Care Residential,Social Care and Health,Mardy Park,Supplies & Services,"Equipment, Furniture and Materials",Cleaning Materials.,,12/10/2022,11059652,10112475,49.82,R,Newhall Janitorial Ltd,200912,
Adult Services,Direct Care Residential,Social Care and Health,Mardy Park,Supplies & Services,"Equipment, Furniture and Materials",Provisions.,,12/10/2022,11059758,10124472,-178.45,R,Castell Howell Foods Ltd,261117,
Adult Services,Direct Care Residential,Social Care and Health,Mardy Park,Supplies & Services,"Equipment, Furniture and Materials",Provisions.,,12/10/2022,11059758,10124472,178.45,R,Castell Howell Foods Ltd,261117,
Adult Services,Direct Care Residential,Social Care and Health,Mardy Park,Supplies & Services,"Equipment, Furniture and Materials",Provisions.,,12/10/2022,11059758,10124472,188.43,R,Castell Howell Foods Ltd,261117,
Adult Services,Direct Care Residential,Social Care and Health,Severn View Residential,Supplies & Services,"Equipment, Furniture and Materials",Provisions.,,10/10/2022,11059667,10123221,80.16,R,Castell Howell Foods Ltd,261117,
Adult Services,Direct Care Residential,Social Care and Health,Severn View Residential,Supplies & Services,"Equipment, Furniture and Materials",Provisions.,,10/10/2022,11059667,10123221,-80.16,R,Castell Howell Foods Ltd,261117,
Adult Services,Direct Care Residential,Social Care and Health,Severn View Residential,Supplies & Services,"Equipment, Furniture and Materials",Provisions.,,10/10/2022,11059667,10123221,398.13,R,Castell Howell Foods Ltd,261117,
Community Care,Community Care Team,Social Care and Health,Monmouth Adult Team,Third Party Payments,Third Party,Residential.,,07/10/2022,318198,0,2602.32,R,Westbank Residential Home,252540,
Community Care,Community Care Team,Social Care and Health,Monmouth Adult Team,Third Party Payments,Third Party,Residential.,,07/10/2022,318198,0,2602.32,R,Westbank Residential Home,252540,
Community Care,Community Care Team,Social Care and Health,Monmouth Adult Team,Third Party Payments,Third Party,Residential.,,07/10/2022,318198,0,3543.64,R,Hafod Housing Association Ltd,2200743,
Community Care,Community Care Team,Social Care and Health,Monmouth Adult Team,Third Party Payments,Third Party,Residential.,,07/10/2022,318198,0,1620,R,Milkwood Care Ltd T/A Ganarew House,211461,
Community Care,ADULT DISABILITY SERVICES,Social Care and Health,CLDT,Third Party Payments,Third Party,Residential.,,07/10/2022,318198,0,5870.36,R,Achieve Together Limited,239606,
Community Care,ADULT DISABILITY SERVICES,Social Care and Health,CLDT,Third Party Payments,Third Party,Residential.,,07/10/2022,318198,0,1147.15,R,Achieve Together Limited,239606,
Community Care,ADULT DISABILITY SERVICES,Social Care and Health,CLDT,Third Party Payments,Third Party,Residential.,,07/10/2022,318198,0,6194.57,R,Achieve Together Limited,239606,
Community Care,ADULT DISABILITY SERVICES,Social Care and Health,CLDT,Third Party Payments,Third Party,Residential.,,07/10/2022,318198,0,5589.59,R,Eriskay Residential Care,211373,
Community Care,ADULT DISABILITY SERVICES,Social Care and Health,Resettlement,Third Party Payments,Third Party,Residential.,,07/10/2022,318198,0,7495.76,R,Achieve Together Limited,239606,
Community Care,Community Care Team,Social Care and Health,Mental Health Care Team,Third Party Payments,Third Party,Residential.,,07/10/2022,318198,0,5402.84,R,Redlands (Priory Group),294631,
Community Care,Community Care Team,Social Care and Health,Monmouth Adult Team,Third Party Payments,Third Party,Nursing.,,07/10/2022,318198,0,677.46,R,Danygraig Nursing Home,276991,
Community Care,Community Care Team,Social Care and Health,Mental Health Care Team,Third Party Payments,Third Party,Nursing.,,07/10/2022,318198,0,3064,R,Milkwood Care Ltd T/A Castleford,212142,
Community Care,Community Care Team,Social Care and Health,Mental Health Care Team,Third Party Payments,Third Party,Nursing.,,07/10/2022,318198,0,3042.85,R,Cwrt Enfys,2203800,
Community Care,Community Care Team,Social Care and Health,Mental Health Care Team,Third Party Payments,Third Party,Nursing.,,07/10/2022,318198,0,3144.28,R,Cwrt Enfys,2203800,
Neighbourhood Services,Highways,Communities & Place,Training,Transport,Direct Transport Costs,Transportation of Supplies,,19/10/2022,11062926,818981,85,R,Forest Traffic Signals Ltd,207162,
Neighbourhood Services,Highways,Communities & Place,Training,Transport,Direct Transport Costs,Transportation of Supplies,,19/10/2022,11062921,818887,170,R,Forest Traffic Signals Ltd,207162,
Community Care,Community Care Team,Social Care and Health,Mental Health Care Team,Third Party Payments,Third Party,FNC Social Care Nursing Tasks,,06/10/2022,318196,0,29.92,R,Rozelle Nursing Home (SKM Medical Limited),211466,
Community Care,Community Care Team,Social Care and Health,Chepstow Adult Team,Third Party Payments,Third Party,FNC Social Care Nursing Tasks,,06/10/2022,318196,0,29.92,R,Adriana Ltd,211379,
Community Care,Community Care Team,Social Care and Health,Chepstow Adult Team,Third Party Payments,Third Party,FNC Social Care Nursing Tasks,,06/10/2022,318196,0,29.92,R,Crick Nursing Home,210961,
Community Care,Community Care Team,Social Care and Health,Mental Health Care Team,Third Party Payments,Third Party,Nursing.,,06/10/2022,318196,0,3176,R,Rozelle Nursing Home (SKM Medical Limited),211466,
Community Care,Community Care Team,Social Care and Health,Chepstow Adult Team,Third Party Payments,Third Party,Nursing.,,06/10/2022,318196,0,3064,R,Adriana Ltd,211379,
Community Care,Community Care Team,Social Care and Health,Monmouth Adult Team,Third Party Payments,Third Party,Nursing.,,06/10/2022,318196,0,3064,R,Adriana Ltd,211379,
Community Care,Community Care Team,Social Care and Health,Mental Health Care Team,Third Party Payments,Third Party,Residential.,,06/10/2022,318196,0,3733.41,R,Glaslyn Retirement Home Ltd,211367,
Community Care,Community Care Team,Social Care and Health,Chepstow Adult Team,Third Party Payments,Third Party,Residential.,,06/10/2022,318196,0,2900,R,EVH Ltd t/a Castle Court Residential Home,211361,
Community Care,Community Care Team,Social Care and Health,Chepstow Adult Team,Third Party Payments,Third Party,Residential.,,06/10/2022,318196,0,2900,R,EVH Ltd t/a Castle Court Residential Home,211361,
Community Care,Community Care Team,Social Care and Health,Chepstow Adult Team,Third Party Payments,Third Party,Residential.,,06/10/2022,318196,0,2900,R,EVH Ltd t/a Castle Court Residential Home,211361,
Children Services,Children Services Other,Social Care and Health,External Placements - CLA,Third Party Payments,Third Party,Nursing.,,10/10/2022,11060175,10123430,3068.92,R,Richmond Nursing Agency Ltd,2203303,
Schools Total,School Group 7 � Pupil Capacity 501-1800,MCC Schools,King Henry VIII Comprehensive,Employees,Indirect Employee Expenses,Replacement,,10/10/2022,11060561,80088974,105,R,Axcis Education Recruitment,297922,
Schools Total,School Group 7 � Pupil Capacity 501-1800,MCC Schools,King Henry VIII Comprehensive,Employees,Indirect Employee Expenses,Replacement,,10/10/2022,11060560,80088974,110.25,R,Axcis Education Recruitment,297922,
Schools Total,School Group 7 � Pupil Capacity 501-1800,MCC Schools,King Henry VIII Comprehensive,Employees,Indirect Employee Expenses,Replacement,,10/10/2022,11060559,80088974,220.5,R,Axcis Education Recruitment,297922,
Schools Total,School Group 7 � Pupil Capacity 501-1800,MCC Schools,King Henry VIII Comprehensive,Employees,Indirect Employee Expenses,Replacement,,10/10/2022,11060554,80088918,454.6,R,Teaching Personnel,249395,
Information Communication Technology,Technology & Organisational Design,Resources,Mobile Telephony,Supplies & Services,Communications and Computing,Mobile Telephones,,10/10/2022,11059761,10124554,142,R,EE Limited,251068,
Information Communication Technology,Technology & Organisational Design,Resources,Mobile Telephony,Supplies & Services,Communications and Computing,Mobile Telephones,,10/10/2022,11059760,10124554,142,R,EE Limited,251068,
Finance & Business Devlopment,Attractions,MonLife Directorate,Tourist Information Centres,Supplies & Services,Catering,Cafe,,05/10/2022,11051276,10122758,150,R,The Welsh Coffee Company,2201637,
"Leisure, Youth & Outdoor Adventure",Youth & Education,MonLife Directorate,Gilwern,Transport,Contract Hire and Operating Leases,Vehicle Hire Charge,,05/10/2022,11053802,0,144.2,R,Maben Vehicle Hire,299931,
Capital Division,Capital Dept,Capital,Capital Programme,Transport,Direct Transport Costs,Acquisition,,17/10/2022,11061080,0,55957.8,C,Glenside Commercials Ltd,293813,
Adult Services,Direct Care Residential,Social Care and Health,Severn View Residential,Employees,Direct Employee Expenses,Agency Staff,,12/10/2022,11060201,10126748,3115.1,R,Support Ethics Ltd,2203200,
Schools Total,School Group 7 � Pupil Capacity 501-1800,MCC Schools,Monmouth Comprehensive,Supplies & Services,Expenses,Exam Fees (Schools),,10/10/2022,11059699,80084377,327.36,R,WJEC CBAC Limited,248050,
Children Services,Children Services Other,Social Care and Health,External Placements - CLA,Third Party Payments,Third Party,Fostering/Adoption Allowances,,10/10/2022,11059753,10112758,11506.05,R,Rainbow Therapeutic,298568,
Children Services,Children Services Other,Social Care and Health,External Placements - CLA,Third Party Payments,Third Party,Fostering/Adoption Allowances,,10/10/2022,11060106,10116412,3726.3,R,National Fostering Agency,294165,
Children Services,Children Services Other,Social Care and Health,External Placements - CLA,Third Party Payments,Third Party,Fostering/Adoption Allowances,,10/10/2022,11059993,10123816,2572.5,R,National Fostering Agency,294165,
Children Services,Children Services Other,Social Care and Health,External Placements - CLA,Third Party Payments,Third Party,Fostering/Adoption Allowances,,10/10/2022,11059994,10123816,1102.5,R,National Fostering Agency,294165,
Schools Total,School Group 7 � Pupil Capacity 501-1800,MCC Schools,Monmouth Comprehensive,Supplies & Services,"Equipment, Furniture and Materials",Materials & Consumables.,,10/10/2022,11059650,0,171.49,R,REDACTED DATA,297160,
Schools Total,School Group 2 � Pupil Capacity 144-314,MCC Schools,Llantilio Pertholey CiW Primary School (VC),Supplies & Services,"Equipment, Furniture and Materials",Materials & Consumables.,,17/10/2022,11061249,80085089,31.64,R,Amazon Payments UK Limited,2200305,
"Facilities, Fleet & Decarbonisation",Transport Department,Communities & Place,Transport,Supplies & Services,"Equipment, Furniture and Materials",Materials & Consumables.,,17/10/2022,11058351,0,210.24,R,Mon & Border Motor Factors Ltd,200544,
"Facilities, Fleet & Decarbonisation",Transport Department,Communities & Place,Transport,Transport,Direct Transport Costs,All Other Non-Contract Transport Work.,,17/10/2022,11053801,0,1040,R,GearBox Centre Cwmbran,297187,
Schools Total,School Group 7 � Pupil Capacity 501-1800,MCC Schools,King Henry VIII Comprehensive,Supplies & Services,"Equipment, Furniture and Materials",Materials & Consumables.,,10/10/2022,11060540,80087013,1931,R,Peters Library Service Ltd,208753,
Schools Total,School Group 2 � Pupil Capacity 144-314,MCC Schools,Thornwell Primary School,Supplies & Services,"Equipment, Furniture and Materials",Equipment Purchases,,10/10/2022,11060451,80088961,33,R,Sportsafe UK Ltd,297598,
Schools Total,School Group 2 � Pupil Capacity 144-314,MCC Schools,Thornwell Primary School,Supplies & Services,"Equipment, Furniture and Materials",Equipment Purchases,,10/10/2022,11060451,80088961,57,R,Sportsafe UK Ltd,297598,
Schools Total,School Group 2 � Pupil Capacity 144-314,MCC Schools,Shirenewton Primary School,Supplies & Services,"Equipment, Furniture and Materials",Equipment Purchases,,10/10/2022,11058412,80088659,-66.8,R,Hope Education Ltd,200969,
Schools Total,School Group 2 � Pupil Capacity 144-314,MCC Schools,Shirenewton Primary School,Supplies & Services,"Equipment, Furniture and Materials",Equipment Purchases,,10/10/2022,11058412,80088659,66.8,R,Hope Education Ltd,200969,
Children Services,Children Services Other,Social Care and Health,External Placements - CLA,Third Party Payments,Third Party,Fostering/Adoption Allowances,,10/10/2022,11059666,10122989,5660.7,R,Compass Fostering West Limited,2202033,
Schools Total,School Group 2 � Pupil Capacity 144-314,MCC Schools,Shirenewton Primary School,Supplies & Services,"Equipment, Furniture and Materials",Equipment Purchases,,10/10/2022,11058412,80088659,546.08,R,Hope Education Ltd,200969,
Neighbourhood Services,Highways,Communities & Place,Gully emptying,Transport,Contract Hire and Operating Leases,Plant Hire Charge,,10/10/2022,11060438,818658,576,R,Gap Group Limited,291834,
Schools Total,School Group 2 � Pupil Capacity 144-314,MCC Schools,St Mary�s RC Primary School (VA),Employees,Indirect Employee Expenses,"Course, Conference And Seminar Fees",,27/10/2022,11065679,80089460,120,R,Archdiocese Of Cardiff Schools RE,285452,
Neighbourhood Services,Highways,Communities & Place,Capital - Permanent Patching,Transport,Contract Hire and Operating Leases,Plant Hire Charge,,27/10/2022,11067819,818937,2601,R,A.L.D Plant Hire,208030,
Neighbourhood Services,Highways,Communities & Place,Capital - Permanent Patching,Transport,Contract Hire and Operating Leases,Plant Hire Charge,,27/10/2022,11067818,818937,5722.2,R,A.L.D Plant Hire,208030,
Neighbourhood Services,Highways,Communities & Place,Task Orders,Transport,Contract Hire and Operating Leases,Plant Hire Charge,,27/10/2022,11067820,819102,15200,R,Etheridge Plant Hire Ltd,212459,
Schools Total,School Group 2 � Pupil Capacity 144-314,MCC Schools,Llantilio Pertholey CiW Primary School (VC),Supplies & Services,"Equipment, Furniture and Materials",Materials & Consumables.,,27/10/2022,11063076,80085089,23.74,R,Amazon Payments UK Limited,2200305,
Schools Total,School Group 7 � Pupil Capacity 501-1800,MCC Schools,Caldicot School,Supplies & Services,"Equipment, Furniture and Materials",Materials & Consumables.,,27/10/2022,11067706,80089148,4.57,R,Amazon Payments UK Limited,2200305,
"Enterprise, Housing & Community Animation",General Fund Housing,Communities & Place,Lodgings Scheme,Premises,Rents,Rents/Hire Of Premises.,,24/10/2022,11065177,0,553.57,R,REDACTED PERSONAL DATA,292592,
"Enterprise, Housing & Community Animation",General Fund Housing,Communities & Place,Lodgings Scheme,Premises,Rents,Rents/Hire Of Premises.,,24/10/2022,11065176,0,553.57,R,REDACTED PERSONAL DATA,292592,
"Policy, Scrutiny & Customer Service",Policy And Partnerships,Chief Executive's Unit,Equalities and Welsh Language,Supplies & Services,Services,Professional And Specialist Fees,,12/10/2022,11060196,10125678,358.99,R,REDACTED PERSONAL DATA,2201644,
"Enterprise, Housing & Community Animation",General Fund Housing,Communities & Place,Homelessness,Supplies & Services,Services,Homelessness Bed & Breakfast Accomodation,,12/10/2022,11059984,10123226,165.83,R,First Motorway Services Ltd,2203388,
"Enterprise, Housing & Community Animation",General Fund Housing,Communities & Place,Homelessness,Supplies & Services,Services,Homelessness Bed & Breakfast Accomodation,,12/10/2022,11059983,10123225,660,R,REDACTED PERSONAL DATA,2203190,
"Enterprise, Housing & Community Animation",General Fund Housing,Communities & Place,Homelessness,Supplies & Services,Services,Homelessness Bed & Breakfast Accomodation,,12/10/2022,11059982,10123225,910,R,REDACTED PERSONAL DATA,2203190,
Community Care,Community Care Team,Social Care and Health,Monnow Vale,Third Party Payments,Third Party,Third party payments NOT relating to goods or services,,20/10/2022,11060293,0,-14809,R,Aneurin Bevan Local Health Board,289812,
Schools Total,School Group 2 � Pupil Capacity 144-314,MCC Schools,Thornwell Primary School,Supplies & Services,Grants and Subscriptions,Subscriptions,,10/10/2022,11060460,80088960,230,R,Oxford University Press,209341,
Schools Total,School Group 2 � Pupil Capacity 144-314,MCC Schools,Thornwell Primary School,Premises,Cleaning and Domestic Supplies,Toilet Requisites,,10/10/2022,11060477,80088038,338.4,R,H D Adcock (Nelson) Ltd,208635,
Neighbourhood Services,Highways,Communities & Place,Emergency road clearance,Supplies & Services,Services,Sub-Contractors Fees,,05/10/2022,11058422,819035,1049,R,Geo Pollution Technologies (UK) Ltd T/A Natural Solutions Environmental Management Services,255430,
"Enterprise, Housing & Community Animation",General Fund Housing,Communities & Place,Homelessness,Supplies & Services,Services,Homelessness Bed & Breakfast Accomodation,,17/10/2022,11060506,10125561,1106,R,The Park Hotel,2202558,
Standards,Early Years,Children & Young People,Expansion of Early Years Grant,Third Party Payments,Third Party,Third party payments NOT relating to goods or services,,10/10/2022,11060492,10127236,2700,R,Sticky Fingers Under 5's,212329,
"Enterprise, Housing & Community Animation",General Fund Housing,Communities & Place,Melin PSL (Private Sector Leasing),Premises,Rents,Rents/Hire Of Premises.,,21/10/2022,11064786,0,539.99,R,REDACTED PERSONAL DATA,276234,
"Enterprise, Housing & Community Animation",General Fund Housing,Communities & Place,Melin PSL (Private Sector Leasing),Premises,Rents,Rents/Hire Of Premises.,,21/10/2022,11064785,0,550,R,REDACTED PERSONAL DATA,288602,
"Enterprise, Housing & Community Animation",General Fund Housing,Communities & Place,Melin PSL (Private Sector Leasing),Premises,Rents,Rents/Hire Of Premises.,,21/10/2022,11064784,0,446,R,REDACTED PERSONAL DATA,281028,
"Enterprise, Housing & Community Animation",General Fund Housing,Communities & Place,Melin PSL (Private Sector Leasing),Premises,Rents,Rents/Hire Of Premises.,,21/10/2022,11064783,0,500,R,REDACTED PERSONAL DATA,2201151,
"Enterprise, Housing & Community Animation",General Fund Housing,Communities & Place,Melin PSL (Private Sector Leasing),Premises,Rents,Rents/Hire Of Premises.,,21/10/2022,11064782,0,539.99,R,REDACTED PERSONAL DATA,281946,
"Enterprise, Housing & Community Animation",General Fund Housing,Communities & Place,Melin PSL (Private Sector Leasing),Premises,Rents,Rents/Hire Of Premises.,,21/10/2022,11064781,0,352,R,REDACTED PERSONAL DATA,272999,
"Enterprise, Housing & Community Animation",General Fund Housing,Communities & Place,Melin PSL (Private Sector Leasing),Premises,Rents,Rents/Hire Of Premises.,,21/10/2022,11064780,0,446,R,REDACTED PERSONAL DATA,2200893,
"Enterprise, Housing & Community Animation",General Fund Housing,Communities & Place,Melin PSL (Private Sector Leasing),Premises,Rents,Rents/Hire Of Premises.,,21/10/2022,11064779,0,539.99,R,REDACTED PERSONAL DATA,290048,
"Enterprise, Housing & Community Animation",General Fund Housing,Communities & Place,Melin PSL (Private Sector Leasing),Premises,Rents,Rents/Hire Of Premises.,,21/10/2022,11064778,0,446,R,REDACTED PERSONAL DATA,281946,
"Enterprise, Housing & Community Animation",General Fund Housing,Communities & Place,Melin PSL (Private Sector Leasing),Premises,Rents,Rents/Hire Of Premises.,,21/10/2022,11064777,0,472.51,R,Lesbriel Property Investment Ltd,291238,
"Enterprise, Housing & Community Animation",General Fund Housing,Communities & Place,Lodgings Scheme,Premises,Rents,Rents/Hire Of Premises.,,24/10/2022,11065178,0,553.57,R,REDACTED PERSONAL DATA,292592,
Children Services,Children Services Teams,Social Care and Health,Family Support and Protection Team,Supplies & Services,Services,Professional And Specialist Fees,,10/10/2022,11059683,10125456,315,R,Cheka Safeguarding Services Limited,297627,
Children Services,Supporting Children & Young People Service,Social Care and Health,Family Time Service,Supplies & Services,Services,Professional And Specialist Fees,,12/10/2022,11060439,10113842,20.83,R,Shield Security,2200377,
"Enterprise, Housing & Community Animation",General Fund Housing,Communities & Place,Lodgings Scheme,Premises,Rents,Rents/Hire Of Premises.,,24/10/2022,11065179,0,553.57,R,REDACTED PERSONAL DATA,292592,
"Enterprise, Housing & Community Animation",General Fund Housing,Communities & Place,Lodgings Scheme,Premises,Rents,Rents/Hire Of Premises.,,24/10/2022,11065180,0,553.57,R,REDACTED PERSONAL DATA,292592,
"Enterprise, Housing & Community Animation",General Fund Housing,Communities & Place,Lodgings Scheme,Premises,Rents,Rents/Hire Of Premises.,,24/10/2022,11065181,0,553.57,R,REDACTED PERSONAL DATA,296451,
Resources & Performance,Finance (SHS),Social Care and Health,Finance,Third Party Payments,Third Party,Third party payments NOT relating to goods or services,,17/10/2022,318235,0,17232,R,Radis Community Care,235438,
Resources & Performance,Finance (SHS),Social Care and Health,Finance,Third Party Payments,Third Party,Third party payments NOT relating to goods or services,,17/10/2022,318235,0,10236,R,Q Care Ltd,212390,
Resources & Performance,Finance (SHS),Social Care and Health,Finance,Third Party Payments,Third Party,Third party payments NOT relating to goods or services,,17/10/2022,318235,0,8292,R,New Directions Care & Support,294273,
Resources & Performance,Finance (SHS),Social Care and Health,Finance,Third Party Payments,Third Party,Third party payments NOT relating to goods or services,,17/10/2022,318235,0,6174,R,My Care My Home Ltd,278742,
Resources & Performance,Finance (SHS),Social Care and Health,Finance,Third Party Payments,Third Party,Third party payments NOT relating to goods or services,,17/10/2022,318235,0,2904,R,JSJ Supported Living Ltd,283994,
Resources & Performance,Finance (SHS),Social Care and Health,Finance,Third Party Payments,Third Party,Third party payments NOT relating to goods or services,,17/10/2022,318235,0,7770,R,Home Instead Senior Care,2202031,
Resources & Performance,Finance (SHS),Social Care and Health,Finance,Third Party Payments,Third Party,Third party payments NOT relating to goods or services,,17/10/2022,318235,0,3474,R,Helping Hands,2200390,
Resources & Performance,Finance (SHS),Social Care and Health,Finance,Third Party Payments,Third Party,Third party payments NOT relating to goods or services,,17/10/2022,318235,0,7596,R,Cornpoppy Homecare Agency,285538,
Resources & Performance,Finance (SHS),Social Care and Health,Finance,Third Party Payments,Third Party,Third party payments NOT relating to goods or services,,17/10/2022,318235,0,22044,R,Lougher Home Care Ltd,285427,
Resources & Performance,Finance (SHS),Social Care and Health,Finance,Third Party Payments,Third Party,Third party payments NOT relating to goods or services,,17/10/2022,318235,0,7056,R,Castle Care Supported Living,2203084,
Resources & Performance,Finance (SHS),Social Care and Health,Finance,Third Party Payments,Third Party,Third party payments NOT relating to goods or services,,17/10/2022,318235,0,990,R,3 Circles Care Limited,2202613,
Resources & Performance,Finance (SHS),Social Care and Health,Finance,Third Party Payments,Third Party,Third party payments NOT relating to goods or services,,17/10/2022,318235,0,2730,R,Bluebird Care Pontypool and Ebbw Vale (Harris Health LTD),2201817,
Resources & Performance,Finance (SHS),Social Care and Health,Finance,Third Party Payments,Third Party,Third party payments NOT relating to goods or services,,17/10/2022,318235,0,6464.88,R,Allied Healthcare Services Limited,228252,
Resources & Performance,Finance (SHS),Social Care and Health,Finance,Third Party Payments,Third Party,Third party payments NOT relating to goods or services,,17/10/2022,318235,0,18368.88,R,Abicare Services Ltd,280249,
Standards,Early Years,Children & Young People,Expansion of Early Years Grant,Third Party Payments,Third Party,Third party payments NOT relating to goods or services,,10/10/2022,11060534,10127275,400,R,Meadowbank Day Nursery,299646,
Standards,Early Years,Children & Young People,Expansion of Early Years Grant,Third Party Payments,Third Party,Third party payments NOT relating to goods or services,,10/10/2022,11060533,10127267,1200,R,Nevill Hall Creche,211763,
Standards,Early Years,Children & Young People,Expansion of Early Years Grant,Third Party Payments,Third Party,Third party payments NOT relating to goods or services,,10/10/2022,11060532,10127266,4050,R,Llandogo Early Years,285885,
"Enterprise, Housing & Community Animation",General Fund Housing,Communities & Place,Homelessness,Supplies & Services,Services,Homelessness Bed & Breakfast Accomodation,,17/10/2022,11061349,10123261,291.69,R,Raglan Lodge,2202447,
Schools Total,School Group 2 � Pupil Capacity 144-314,MCC Schools,St Mary�s RC Primary School (VA),Supplies & Services,Grants and Subscriptions,Subscriptions,,19/10/2022,11062948,80089269,30,R,Catholic Association of Teachers Schools and Colleges,253154,
"Enterprise, Housing & Community Animation",General Fund Housing,Communities & Place,Lodgings Scheme,Premises,Rents,Rents/Hire Of Premises.,,24/10/2022,11065182,0,553.57,R,REDACTED PERSONAL DATA,296451,
"Enterprise, Housing & Community Animation",General Fund Housing,Communities & Place,Lodgings Scheme,Premises,Rents,Rents/Hire Of Premises.,,24/10/2022,11065183,0,553.57,R,REDACTED PERSONAL DATA,296451,
"Enterprise, Housing & Community Animation",General Fund Housing,Communities & Place,Lodgings Scheme,Premises,Rents,Rents/Hire Of Premises.,,24/10/2022,11065184,0,553.57,R,REDACTED PERSONAL DATA,296451,
"Enterprise, Housing & Community Animation",General Fund Housing,Communities & Place,Lodgings Scheme,Premises,Rents,Rents/Hire Of Premises.,,24/10/2022,11065185,0,553.57,R,REDACTED PERSONAL DATA,296451,
"Enterprise, Housing & Community Animation",General Fund Housing,Communities & Place,Lodgings Scheme,Premises,Rents,Rents/Hire Of Premises.,,24/10/2022,11065186,0,553.57,R,REDACTED PERSONAL DATA,296451,
"Enterprise, Housing & Community Animation",General Fund Housing,Communities & Place,Lodgings Scheme,Premises,Rents,Rents/Hire Of Premises.,,24/10/2022,11065187,0,553.57,R,REDACTED PERSONAL DATA,296451,
"Enterprise, Housing & Community Animation",General Fund Housing,Communities & Place,Lodgings Scheme,Premises,Rents,Rents/Hire Of Premises.,,24/10/2022,11065188,0,553.57,R,REDACTED PERSONAL DATA,296451,
"Enterprise, Housing & Community Animation",General Fund Housing,Communities & Place,Lodgings Scheme,Premises,Rents,Rents/Hire Of Premises.,,24/10/2022,11065189,0,553.57,R,REDACTED PERSONAL DATA,292592,
"Enterprise, Housing & Community Animation",General Fund Housing,Communities & Place,Lodgings Scheme,Premises,Rents,Rents/Hire Of Premises.,,24/10/2022,11065175,0,553.57,R,REDACTED PERSONAL DATA,292592,
"Enterprise, Housing & Community Animation",General Fund Housing,Communities & Place,Lodgings Scheme,Premises,Rents,Rents/Hire Of Premises.,,24/10/2022,11065174,0,442.85,R,Highmore Investments Ltd,2203559,
"Enterprise, Housing & Community Animation",General Fund Housing,Communities & Place,Lodgings Scheme,Premises,Rents,Rents/Hire Of Premises.,,24/10/2022,11065173,0,442.85,R,Highmore Investments Ltd,2203559,
"Enterprise, Housing & Community Animation",General Fund Housing,Communities & Place,Lodgings Scheme,Premises,Rents,Rents/Hire Of Premises.,,24/10/2022,11065172,0,442.85,R,Highmore Investments Ltd,2203559,
"Enterprise, Housing & Community Animation",General Fund Housing,Communities & Place,Lodgings Scheme,Premises,Rents,Rents/Hire Of Premises.,,24/10/2022,11065171,0,442.85,R,Highmore Investments Ltd,2203559,
"Enterprise, Housing & Community Animation",General Fund Housing,Communities & Place,Lodgings Scheme,Premises,Rents,Rents/Hire Of Premises.,,24/10/2022,11065170,0,442.85,R,Highmore Investments Ltd,2203559,
"Enterprise, Housing & Community Animation",General Fund Housing,Communities & Place,Lodgings Scheme,Premises,Rents,Rents/Hire Of Premises.,,24/10/2022,11065169,0,442.85,R,Highmore Investments Ltd,2203559,
"Enterprise, Housing & Community Animation",General Fund Housing,Communities & Place,Lodgings Scheme,Premises,Rents,Rents/Hire Of Premises.,,24/10/2022,11065168,0,442.85,R,Highmore Investments Ltd,2203559,
Schools Total,SCHGRP3 � School Group 3 � Pupil Capacity 315-500,MCC Schools,Deri View Primary School,Employees,Direct Employee Expenses,Agency Staff,,27/10/2022,11063268,80088729,518.9,R,Apollo Teaching Services LTD,295494,
Schools Total,School Group 2 � Pupil Capacity 144-314,MCC Schools,Thornwell Primary School,Premises,Ground Maintenance Costs,Grounds Maintenance - Direct.,,19/10/2022,11062964,80088959,600,R,Playwood,2203492,
Schools Total,School Group 7 � Pupil Capacity 501-1800,MCC Schools,King Henry VIII Comprehensive,Employees,Direct Employee Expenses,Agency Staff,,25/10/2022,11065574,0,126.35,R,New Directions Education Ltd,233905,
Schools Total,School Group 7 � Pupil Capacity 501-1800,MCC Schools,King Henry VIII Comprehensive,Employees,Direct Employee Expenses,Agency Staff,,25/10/2022,11065573,0,199.65,R,New Directions Education Ltd,233905,
Schools Total,School Group 7 � Pupil Capacity 501-1800,MCC Schools,King Henry VIII Comprehensive,Employees,Direct Employee Expenses,Agency Staff,,25/10/2022,11065572,0,199.65,R,New Directions Education Ltd,233905,
Schools Total,School Group 7 � Pupil Capacity 501-1800,MCC Schools,King Henry VIII Comprehensive,Employees,Direct Employee Expenses,Agency Staff,,25/10/2022,11065571,0,199.65,R,New Directions Education Ltd,233905,
Schools Total,School Group 7 � Pupil Capacity 501-1800,MCC Schools,King Henry VIII Comprehensive,Employees,Direct Employee Expenses,Agency Staff,,25/10/2022,11065570,0,199.65,R,New Directions Education Ltd,233905,
Schools Total,School Group 7 � Pupil Capacity 501-1800,MCC Schools,King Henry VIII Comprehensive,Employees,Direct Employee Expenses,Agency Staff,,25/10/2022,11065569,0,199.65,R,New Directions Education Ltd,233905,
Schools Total,School Group 7 � Pupil Capacity 501-1800,MCC Schools,King Henry VIII Comprehensive,Employees,Direct Employee Expenses,Agency Staff,,25/10/2022,11065568,0,114,R,New Directions Education Ltd,233905,
Schools Total,School Group 7 � Pupil Capacity 501-1800,MCC Schools,King Henry VIII Comprehensive,Employees,Direct Employee Expenses,Agency Staff,,25/10/2022,11065567,0,199.65,R,New Directions Education Ltd,233905,
Schools Total,School Group 7 � Pupil Capacity 501-1800,MCC Schools,King Henry VIII Comprehensive,Employees,Direct Employee Expenses,Agency Staff,,25/10/2022,11065566,0,201.67,R,New Directions Education Ltd,233905,
Schools Total,School Group 7 � Pupil Capacity 501-1800,MCC Schools,King Henry VIII Comprehensive,Employees,Direct Employee Expenses,Agency Staff,,25/10/2022,11065565,0,201.67,R,New Directions Education Ltd,233905,
Schools Total,School Group 7 � Pupil Capacity 501-1800,MCC Schools,King Henry VIII Comprehensive,Employees,Direct Employee Expenses,Agency Staff,,25/10/2022,11065564,0,201.67,R,New Directions Education Ltd,233905,
Schools Total,School Group 7 � Pupil Capacity 501-1800,MCC Schools,King Henry VIII Comprehensive,Employees,Direct Employee Expenses,Agency Staff,,25/10/2022,11065563,0,201.67,R,New Directions Education Ltd,233905,
Schools Total,School Group 7 � Pupil Capacity 501-1800,MCC Schools,King Henry VIII Comprehensive,Employees,Direct Employee Expenses,Agency Staff,,25/10/2022,11065562,0,201.67,R,New Directions Education Ltd,233905,
Schools Total,School Group 7 � Pupil Capacity 501-1800,MCC Schools,King Henry VIII Comprehensive,Employees,Direct Employee Expenses,Agency Staff,,25/10/2022,11065561,0,118.59,R,New Directions Education Ltd,233905,
Schools Total,School Group 7 � Pupil Capacity 501-1800,MCC Schools,King Henry VIII Comprehensive,Employees,Direct Employee Expenses,Agency Staff,,25/10/2022,11065560,0,118.59,R,New Directions Education Ltd,233905,
Schools Total,School Group 7 � Pupil Capacity 501-1800,MCC Schools,King Henry VIII Comprehensive,Employees,Direct Employee Expenses,Agency Staff,,25/10/2022,11065559,0,118.59,R,New Directions Education Ltd,233905,
Schools Total,School Group 7 � Pupil Capacity 501-1800,MCC Schools,King Henry VIII Comprehensive,Employees,Direct Employee Expenses,Agency Staff,,25/10/2022,11065558,0,118.59,R,New Directions Education Ltd,233905,
Schools Total,School Group 2 � Pupil Capacity 144-314,MCC Schools,Goytre Fawr Primary School,Employees,Direct Employee Expenses,Agency Staff,,25/10/2022,11065557,0,202.67,R,New Directions Education Ltd,233905,
Schools Total,School Group 2 � Pupil Capacity 144-314,MCC Schools,Goytre Fawr Primary School,Employees,Direct Employee Expenses,Agency Staff,,25/10/2022,11065556,0,202.67,R,New Directions Education Ltd,233905,
Schools Total,School Group 2 � Pupil Capacity 144-314,MCC Schools,Goytre Fawr Primary School,Employees,Direct Employee Expenses,Agency Staff,,25/10/2022,11065555,0,202.67,R,New Directions Education Ltd,233905,
Schools Total,School Group 2 � Pupil Capacity 144-314,MCC Schools,Goytre Fawr Primary School,Employees,Direct Employee Expenses,Agency Staff,,25/10/2022,11065554,0,202.67,R,New Directions Education Ltd,233905,
Schools Total,School Group 2 � Pupil Capacity 144-314,MCC Schools,Cross Ash Primary School,Employees,Direct Employee Expenses,Agency Staff,,25/10/2022,11065553,0,202.67,R,New Directions Education Ltd,233905,
Schools Total,School Group 2 � Pupil Capacity 144-314,MCC Schools,Cross Ash Primary School,Employees,Direct Employee Expenses,Agency Staff,,25/10/2022,11065552,0,202.67,R,New Directions Education Ltd,233905,
Schools Total,School Group 2 � Pupil Capacity 144-314,MCC Schools,Cross Ash Primary School,Employees,Direct Employee Expenses,Agency Staff,,25/10/2022,11065551,0,107.45,R,New Directions Education Ltd,233905,
Schools Total,School Group 2 � Pupil Capacity 144-314,MCC Schools,Cross Ash Primary School,Employees,Direct Employee Expenses,Agency Staff,,25/10/2022,11065550,0,35.9,R,New Directions Education Ltd,233905,
Schools Total,School Group 2 � Pupil Capacity 144-314,MCC Schools,Cross Ash Primary School,Employees,Direct Employee Expenses,Agency Staff,,25/10/2022,11065549,0,49.36,R,New Directions Education Ltd,233905,
Schools Total,School Group 2 � Pupil Capacity 144-314,MCC Schools,Cross Ash Primary School,Employees,Direct Employee Expenses,Agency Staff,,25/10/2022,11065548,0,49.36,R,New Directions Education Ltd,233905,
"Enterprise, Housing & Community Animation",General Fund Housing,Communities & Place,Homelessness,Premises,"Repairs, Alterations & Maintenance of Buildings",Security Of Premises.,,12/10/2022,11060161,10123260,2772,R,M J Events Support Ltd,296340,
Schools Total,SCHGRP3 � School Group 3 � Pupil Capacity 315-500,MCC Schools,Undy Primary School,Employees,Direct Employee Expenses,Agency Staff,,12/10/2022,11060051,80085552,847.48,R,Teaching 4 Wales Ltd,267637,
Schools Total,School Group 7 � Pupil Capacity 501-1800,MCC Schools,Monmouth Comprehensive,Employees,Direct Employee Expenses,Agency Staff,,10/10/2022,11059477,80085155,1655.84,R,Highgrade Recruitment Ltd,294722,
Schools Total,School Group 7 � Pupil Capacity 501-1800,MCC Schools,Monmouth Comprehensive,Employees,Direct Employee Expenses,Agency Staff,,10/10/2022,11059476,80085155,600,R,Highgrade Recruitment Ltd,294722,
Schools Total,School Group 2 � Pupil Capacity 144-314,MCC Schools,St Mary�s RC Primary School (VA),Employees,Direct Employee Expenses,Agency Staff,,05/10/2022,11052823,80085095,1486.21,R,Teaching 4 Wales Ltd,267637,
Children Services,Children Services Other,Social Care and Health,External Placements - CLA,Third Party Payments,Third Party,Residential.,,10/10/2022,11060219,10127193,855,R,Family Assessment And Support Services Limited,2201812,
Community Care,Community Care Team,Social Care and Health,Mental Health Care Team,Third Party Payments,Third Party,Personal Care.,,05/10/2022,11058452,0,652.8,R,Castle Care Supported Living,2203084,
Schools Total,School Group 7 � Pupil Capacity 501-1800,MCC Schools,Chepstow School,Supplies & Services,"Equipment, Furniture and Materials",Provisions.,,10/10/2022,11060055,80087084,13.98,R,RM Educational Resources Ltd,213173,
Schools Total,School Group 2 � Pupil Capacity 144-314,MCC Schools,Thornwell Primary School,Supplies & Services,"Equipment, Furniture and Materials",Provisions.,,27/10/2022,11067840,80088042,24.9,R,Total Produce(Cardiff),284131,
Community Care,Community Care Team,Social Care and Health,Abergavenny Adult Team,Third Party Payments,Third Party,Residential.,,07/10/2022,318198,0,6642,R,Newport City Council,211127,
Community Care,Community Care Team,Social Care and Health,Abergavenny Adult Team,Third Party Payments,Third Party,Residential.,,07/10/2022,318198,0,1971.43,R,Nightingale Court Residential Home,276209,
Schools Total,School Group 7 � Pupil Capacity 501-1800,MCC Schools,Chepstow School,Supplies & Services,"Equipment, Furniture and Materials",Provisions.,,10/10/2022,11060061,80087443,8.68,R,RM Educational Resources Ltd,213173,
Schools Total,School Group 7 � Pupil Capacity 501-1800,MCC Schools,Chepstow School,Supplies & Services,"Equipment, Furniture and Materials",Provisions.,,10/10/2022,11060063,80087443,26.04,R,RM Educational Resources Ltd,213173,
Community Care,Community Care Team,Social Care and Health,Abergavenny Adult Team,Third Party Payments,Third Party,Residential.,,07/10/2022,318198,0,2628,R,The Daffodils Care Home - HC-ONE,2202408,
"Enterprise, Housing & Community Animation",General Fund Housing,Communities & Place,Lodgings Scheme,Premises,Rents,Rents/Hire Of Premises.,,24/10/2022,11065167,0,442.85,R,Highmore Investments Ltd,2203559,
"Enterprise, Housing & Community Animation",General Fund Housing,Communities & Place,Melin PSL (Private Sector Leasing),Premises,Rents,Rents/Hire Of Premises.,,21/10/2022,11064801,0,373.5,R,REDACTED PERSONAL DATA,257982,
"Enterprise, Housing & Community Animation",General Fund Housing,Communities & Place,Lodgings Scheme,Premises,Rents,Rents/Hire Of Premises.,,24/10/2022,11065190,0,553.57,R,REDACTED PERSONAL DATA,292592,
"Enterprise, Housing & Community Animation",General Fund Housing,Communities & Place,Melin PSL (Private Sector Leasing),Premises,Rents,Rents/Hire Of Premises.,,21/10/2022,11064802,0,373.5,R,REDACTED PERSONAL DATA,257982,
"Enterprise, Housing & Community Animation",General Fund Housing,Communities & Place,Melin PSL (Private Sector Leasing),Premises,Rents,Rents/Hire Of Premises.,,21/10/2022,11064803,0,373.5,R,REDACTED PERSONAL DATA,257982,
"Enterprise, Housing & Community Animation",General Fund Housing,Communities & Place,Melin PSL (Private Sector Leasing),Premises,Rents,Rents/Hire Of Premises.,,21/10/2022,11064804,0,470,R,REDACTED PERSONAL DATA,2201154,
"Enterprise, Housing & Community Animation",General Fund Housing,Communities & Place,Melin PSL (Private Sector Leasing),Premises,Rents,Rents/Hire Of Premises.,,21/10/2022,11064805,0,650,R,REDACTED PERSONAL DATA,246413,
"Enterprise, Housing & Community Animation",General Fund Housing,Communities & Place,Melin PSL (Private Sector Leasing),Premises,Rents,Rents/Hire Of Premises.,,21/10/2022,11064796,0,540,R,REDACTED PERSONAL DATA,2200896,
"Enterprise, Housing & Community Animation",General Fund Housing,Communities & Place,Melin PSL (Private Sector Leasing),Premises,Rents,Rents/Hire Of Premises.,,21/10/2022,11064795,0,425,R,REDACTED PERSONAL DATA,269373,
"Enterprise, Housing & Community Animation",General Fund Housing,Communities & Place,Melin PSL (Private Sector Leasing),Premises,Rents,Rents/Hire Of Premises.,,21/10/2022,11064794,0,425,R,REDACTED PERSONAL DATA,269373,
"Enterprise, Housing & Community Animation",General Fund Housing,Communities & Place,Melin PSL (Private Sector Leasing),Premises,Rents,Rents/Hire Of Premises.,,21/10/2022,11064793,0,472.48,R,REDACTED PERSONAL DATA,2201193,
"Enterprise, Housing & Community Animation",General Fund Housing,Communities & Place,Melin PSL (Private Sector Leasing),Premises,Rents,Rents/Hire Of Premises.,,21/10/2022,11064792,0,500,R,Fonseca Law Limited Property Account,252339,
"Enterprise, Housing & Community Animation",General Fund Housing,Communities & Place,Melin PSL (Private Sector Leasing),Premises,Rents,Rents/Hire Of Premises.,,21/10/2022,11064791,0,700,R,REDACTED PERSONAL DATA,280182,
"Enterprise, Housing & Community Animation",General Fund Housing,Communities & Place,Melin PSL (Private Sector Leasing),Premises,Rents,Rents/Hire Of Premises.,,21/10/2022,11064790,0,650,R,RH Properties,278906,
"Enterprise, Housing & Community Animation",General Fund Housing,Communities & Place,Melin PSL (Private Sector Leasing),Premises,Rents,Rents/Hire Of Premises.,,21/10/2022,11064789,0,472.51,R,REDACTED PERSONAL DATA,274970,
"Enterprise, Housing & Community Animation",General Fund Housing,Communities & Place,Melin PSL (Private Sector Leasing),Premises,Rents,Rents/Hire Of Premises.,,21/10/2022,11064788,0,400,R,REDACTED PERSONAL DATA,276056,
"Enterprise, Housing & Community Animation",General Fund Housing,Communities & Place,Melin PSL (Private Sector Leasing),Premises,Rents,Rents/Hire Of Premises.,,21/10/2022,11064787,0,472.48,R,REDACTED PERSONAL DATA,279204,
"Enterprise, Housing & Community Animation",General Fund Housing,Communities & Place,Melin PSL (Private Sector Leasing),Premises,Rents,Rents/Hire Of Premises.,,21/10/2022,11064776,0,539.99,R,REDACTED PERSONAL DATA,290048,
"Enterprise, Housing & Community Animation",General Fund Housing,Communities & Place,Melin PSL (Private Sector Leasing),Premises,Rents,Rents/Hire Of Premises.,,21/10/2022,11064775,0,539.99,R,REDACTED PERSONAL DATA,281216,
"Enterprise, Housing & Community Animation",General Fund Housing,Communities & Place,Melin PSL (Private Sector Leasing),Premises,Rents,Rents/Hire Of Premises.,,21/10/2022,11064774,0,500,R,REDACTED PERSONAL DATA,2200891,
"Enterprise, Housing & Community Animation",General Fund Housing,Communities & Place,Melin PSL (Private Sector Leasing),Premises,Rents,Rents/Hire Of Premises.,,21/10/2022,11064773,0,700,R,REDACTED PERSONAL DATA,282102,
"Enterprise, Housing & Community Animation",General Fund Housing,Communities & Place,Melin PSL (Private Sector Leasing),Premises,Rents,Rents/Hire Of Premises.,,21/10/2022,11064772,0,352,R,Greenbay Estates,2200890,
"Enterprise, Housing & Community Animation",General Fund Housing,Communities & Place,Melin PSL (Private Sector Leasing),Premises,Rents,Rents/Hire Of Premises.,,21/10/2022,11064771,0,539.99,R,REDACTED PERSONAL DATA,2201193,
"Enterprise, Housing & Community Animation",General Fund Housing,Communities & Place,Melin PSL (Private Sector Leasing),Premises,Rents,Rents/Hire Of Premises.,,21/10/2022,11064770,0,539.99,R,Percivals Nurseries Ltd,283023,
"Enterprise, Housing & Community Animation",General Fund Housing,Communities & Place,Melin PSL (Private Sector Leasing),Premises,Rents,Rents/Hire Of Premises.,,21/10/2022,11064769,0,425,R,REDACTED PERSONAL DATA,269373,
"Enterprise, Housing & Community Animation",General Fund Housing,Communities & Place,Melin PSL (Private Sector Leasing),Premises,Rents,Rents/Hire Of Premises.,,21/10/2022,11064768,0,539.99,R,REDACTED PERSONAL DATA,290048,
Schools Total,School Group 2 � Pupil Capacity 144-314,MCC Schools,Goytre Fawr Primary School,Supplies & Services,Grants and Subscriptions,Subscriptions,,12/10/2022,11060278,80088920,531.44,R,Twinkl.co.uk,2200303,
Schools Total,School Group 2 � Pupil Capacity 144-314,MCC Schools,Goytre Fawr Primary School,Supplies & Services,Grants and Subscriptions,Subscriptions,,12/10/2022,11060278,80088920,684.23,R,Twinkl.co.uk,2200303,
Standards,Early Years,Children & Young People,Flying Start Grant,Supplies & Services,Services,Child Minding Fees,,12/10/2022,11060222,10127235,90,R,Shield Security,2200377,
"Enterprise, Housing & Community Animation",General Fund Housing,Communities & Place,Melin PSL (Private Sector Leasing),Premises,Rents,Rents/Hire Of Premises.,,21/10/2022,11064797,0,539.99,R,REDACTED PERSONAL DATA,285206,
"Enterprise, Housing & Community Animation",General Fund Housing,Communities & Place,Melin PSL (Private Sector Leasing),Premises,Rents,Rents/Hire Of Premises.,,21/10/2022,11064798,0,472.48,R,REDACTED PERSONAL DATA,268134,
"Enterprise, Housing & Community Animation",General Fund Housing,Communities & Place,Melin PSL (Private Sector Leasing),Premises,Rents,Rents/Hire Of Premises.,,21/10/2022,11064799,0,650,R,RH Properties,278906,
Community Care,Community Care Team,Social Care and Health,Mental Health Care Team,Third Party Payments,Third Party,Residential.,,07/10/2022,318198,0,706.68,R,West Coast Care Ltd,2203619,
Adult Services,Direct Care Residential,Social Care and Health,Severn View Residential,Supplies & Services,"Equipment, Furniture and Materials",Provisions.,,17/10/2022,11061499,10123164,90.84,R,Total Produce(Cardiff),284131,
Community Care,ADULT DISABILITY SERVICES,Social Care and Health,CLDT,Third Party Payments,Third Party,Residential.,,07/10/2022,318198,0,7199.4,R,Riverwood Housing,250750,
Community Care,ADULT DISABILITY SERVICES,Social Care and Health,CLDT,Third Party Payments,Third Party,Residential.,,07/10/2022,318198,0,6424,R,Achieve Together Limited,239606,
Community Care,ADULT DISABILITY SERVICES,Social Care and Health,CLDT,Third Party Payments,Third Party,Residential.,,07/10/2022,318198,0,6424,R,Achieve Together Limited,239606,
Community Care,ADULT DISABILITY SERVICES,Social Care and Health,CLDT,Third Party Payments,Third Party,Residential.,,07/10/2022,318198,0,7137,R,Eriskay Residential Care,211373,
Community Care,ADULT DISABILITY SERVICES,Social Care and Health,CLDT,Third Party Payments,Third Party,Residential.,,07/10/2022,318198,0,8050,R,REDACTED PERSONAL DATA,299022,
Community Care,ADULT DISABILITY SERVICES,Social Care and Health,Resettlement,Third Party Payments,Third Party,Residential.,,07/10/2022,318198,0,1569.36,R,Voyage,235714,
Community Care,ADULT DISABILITY SERVICES,Social Care and Health,Resettlement,Third Party Payments,Third Party,Residential.,,07/10/2022,318198,0,4965.4,R,Voyage,235714,
Community Care,ADULT DISABILITY SERVICES,Social Care and Health,Resettlement,Third Party Payments,Third Party,Residential.,,07/10/2022,318198,0,572.38,R,Voyage,235714,
Community Care,ADULT DISABILITY SERVICES,Social Care and Health,Resettlement,Third Party Payments,Third Party,Residential.,,07/10/2022,318198,0,1811.1,R,Voyage,235714,
Community Care,ADULT DISABILITY SERVICES,Social Care and Health,Resettlement,Third Party Payments,Third Party,Residential.,,07/10/2022,318198,0,1449.76,R,Voyage,235714,
Community Care,ADULT DISABILITY SERVICES,Social Care and Health,Resettlement,Third Party Payments,Third Party,Residential.,,07/10/2022,318198,0,4586.96,R,Voyage,235714,
Community Care,ADULT DISABILITY SERVICES,Social Care and Health,Resettlement,Third Party Payments,Third Party,Residential.,,07/10/2022,318198,0,170.76,R,Riverwood Housing,250750,
Community Care,ADULT DISABILITY SERVICES,Social Care and Health,Resettlement,Third Party Payments,Third Party,Residential.,,07/10/2022,318198,0,9631.5,R,Riverwood Housing,250750,
Community Care,ADULT DISABILITY SERVICES,Social Care and Health,Resettlement,Third Party Payments,Third Party,Residential.,,07/10/2022,318198,0,9119.24,R,Voyage,235714,
Community Care,ADULT DISABILITY SERVICES,Social Care and Health,Resettlement,Third Party Payments,Third Party,Residential.,,07/10/2022,318198,0,3326.07,R,Voyage,235714,
Community Care,ADULT DISABILITY SERVICES,Social Care and Health,Resettlement,Third Party Payments,Third Party,Residential.,,07/10/2022,318198,0,8424.24,R,Voyage,235714,
Community Care,Community Care Team,Social Care and Health,Monmouth Adult Team,Third Party Payments,Third Party,Residential.,,07/10/2022,318198,0,3543.63,R,Regency House Residential Home,240239,
Community Care,Community Care Team,Social Care and Health,Monmouth Adult Team,Third Party Payments,Third Party,Residential.,,07/10/2022,318198,0,3543.64,R,Regency House Residential Home,240239,
Community Care,Community Care Team,Social Care and Health,Monmouth Adult Team,Third Party Payments,Third Party,Residential.,,07/10/2022,318198,0,2724,R,REDACTED PERSONAL DATA,2203663,
Community Care,Community Care Team,Social Care and Health,Chepstow Adult Team,Third Party Payments,Third Party,Residential.,,07/10/2022,318198,0,3108.2,R,Blaenau Gwent County Borough Council,234013,
Community Care,ADULT DISABILITY SERVICES,Social Care and Health,Resettlement,Third Party Payments,Third Party,Residential.,,07/10/2022,318198,0,8814,R,Voyage,235714,
Community Care,ADULT DISABILITY SERVICES,Social Care and Health,Resettlement,Third Party Payments,Third Party,Residential.,,07/10/2022,318198,0,3214.66,R,Voyage,235714,
Community Care,ADULT DISABILITY SERVICES,Social Care and Health,Resettlement,Third Party Payments,Third Party,Residential.,,07/10/2022,318198,0,8142.28,R,Voyage,235714,
Community Care,ADULT DISABILITY SERVICES,Social Care and Health,Resettlement,Third Party Payments,Third Party,Residential.,,07/10/2022,318198,0,6724.56,R,Achieve Together Limited,239606,
Community Care,ADULT DISABILITY SERVICES,Social Care and Health,CLDT,Third Party Payments,Third Party,Residential.,,07/10/2022,318198,0,5814.24,R,Achieve Together Limited,239606,
Community Care,Community Care Team,Social Care and Health,Chepstow Adult Team,Third Party Payments,Third Party,Nursing.,,07/10/2022,318198,0,3064,R,Milkwood Care Ltd T/A Castleford,212142,
Community Care,Community Care Team,Social Care and Health,Mental Health Care Team,Third Party Payments,Third Party,Nursing.,,07/10/2022,318198,0,3176,R,Milkwood Care Ltd T/A Castleford,212142,
Community Care,Community Care Team,Social Care and Health,Chepstow Adult Team,Third Party Payments,Third Party,Nursing.,,07/10/2022,318198,0,3176,R,Milkwood Care Ltd T/A Castleford,212142,
Community Care,ADULT DISABILITY SERVICES,Social Care and Health,CLDT,Third Party Payments,Third Party,Nursing.,,07/10/2022,318198,0,3064,R,Milkwood Care Ltd T/A Castleford,212142,
Community Care,Community Care Team,Social Care and Health,Abergavenny Adult Team,Third Party Payments,Third Party,Nursing.,,07/10/2022,318198,0,3899.01,R,Ty Ceirios Nursing Home,2204233,
Community Care,Community Care Team,Social Care and Health,Abergavenny Adult Team,Third Party Payments,Third Party,Nursing.,,07/10/2022,318198,0,4028.98,R,Ty Ceirios Nursing Home,2204233,
Community Care,Community Care Team,Social Care and Health,Abergavenny Adult Team,Third Party Payments,Third Party,Nursing.,,07/10/2022,318198,0,9487.6,R,Ty Ceirios Nursing Home,2204233,
Community Care,Community Care Team,Social Care and Health,Mental Health Care Team,Third Party Payments,Third Party,Residential.,,07/10/2022,318198,0,2252.85,R,Forward(Wales) Ltd,278316,
Community Care,Community Care Team,Social Care and Health,Mental Health Care Team,Third Party Payments,Third Party,Residential.,,07/10/2022,318198,0,3117.67,R,Dulas Court,285798,
Community Care,Community Care Team,Social Care and Health,Mental Health Care Team,Third Party Payments,Third Party,Residential.,,07/10/2022,318198,0,3527.09,R,Ashville Residential Home Ltd,2203364,
Community Care,Community Care Team,Social Care and Health,Mental Health Care Team,Third Party Payments,Third Party,Residential.,,07/10/2022,318198,0,3413.31,R,Ashville Residential Home Ltd,2203364,
Community Care,ADULT DISABILITY SERVICES,Social Care and Health,CLDT,Third Party Payments,Third Party,Residential.,,07/10/2022,318198,0,1332.09,R,Blaenau Gwent County Borough Council,234013,
Community Care,ADULT DISABILITY SERVICES,Social Care and Health,CLDT,Third Party Payments,Third Party,Residential.,,07/10/2022,318198,0,1776.12,R,Blaenau Gwent County Borough Council,234013,
Community Care,ADULT DISABILITY SERVICES,Social Care and Health,CLDT,Third Party Payments,Third Party,Residential.,,07/10/2022,318198,0,6969.17,R,Eriskay Residential Care,211373,
Community Care,Community Care Team,Social Care and Health,Chepstow Adult Team,Third Party Payments,Third Party,Residential.,,07/10/2022,318198,0,3135.43,R,Millbrook Lodge & The Coombs ( The Orders of St John Care Trust),298683,
Community Care,Community Care Team,Social Care and Health,Chepstow Adult Team,Third Party Payments,Third Party,Residential.,,07/10/2022,318198,0,4491.15,R,Accomplish Group,2202152,
Community Care,Community Care Team,Social Care and Health,Monmouth Adult Team,Third Party Payments,Third Party,Residential.,,07/10/2022,318198,0,3166.88,R,Hill View Care Home,2203726,
Community Care,Community Care Team,Social Care and Health,Monmouth Adult Team,Third Party Payments,Third Party,Residential.,,07/10/2022,318198,0,3166.88,R,Hill View Care Home,2203726,
Schools Total,School Group 7 � Pupil Capacity 501-1800,MCC Schools,Caldicot School,Supplies & Services,"Equipment, Furniture and Materials",Materials & Consumables.,,27/10/2022,11067705,80089148,13.57,R,Amazon Payments UK Limited,2200305,
Neighbourhood Services,Highways,Communities & Place,Training,Transport,Contract Hire and Operating Leases,Plant Hire Charge,,19/10/2022,11062926,818981,15,R,Forest Traffic Signals Ltd,207162,
Neighbourhood Services,Highways,Communities & Place,Training,Transport,Contract Hire and Operating Leases,Plant Hire Charge,,19/10/2022,11062921,818887,66,R,Forest Traffic Signals Ltd,207162,
Neighbourhood Services,Highways,Communities & Place,Drainage works,Transport,Contract Hire and Operating Leases,Plant Hire Charge,,19/10/2022,11062920,818908,737,R,Forest Traffic Signals Ltd,207162,
Schools Total,School Group 7 � Pupil Capacity 501-1800,MCC Schools,Caldicot School,Supplies & Services,"Equipment, Furniture and Materials",Materials & Consumables.,,04/10/2022,11058870,80088802,4.99,R,Amazon Payments UK Limited,2200305,
Schools Total,School Group 7 � Pupil Capacity 501-1800,MCC Schools,Caldicot School,Supplies & Services,"Equipment, Furniture and Materials",Materials & Consumables.,,04/10/2022,11058868,80088802,10.41,R,Amazon Payments UK Limited,2200305,
Schools Total,School Group 7 � Pupil Capacity 501-1800,MCC Schools,Caldicot School,Supplies & Services,"Equipment, Furniture and Materials",Materials & Consumables.,,04/10/2022,11058865,80088802,15.69,R,Amazon Payments UK Limited,2200305,
Schools Total,School Group 2 � Pupil Capacity 144-314,MCC Schools,Llantilio Pertholey CiW Primary School (VC),Supplies & Services,"Equipment, Furniture and Materials",Materials & Consumables.,,17/10/2022,11061023,80085089,36.78,R,Amazon Payments UK Limited,2200305,
Schools Total,School Group 2 � Pupil Capacity 144-314,MCC Schools,Llantilio Pertholey CiW Primary School (VC),Supplies & Services,"Equipment, Furniture and Materials",Materials & Consumables.,,17/10/2022,11061024,80085089,24.55,R,Amazon Payments UK Limited,2200305,
Schools Total,School Group 2 � Pupil Capacity 144-314,MCC Schools,Llantilio Pertholey CiW Primary School (VC),Supplies & Services,"Equipment, Furniture and Materials",Materials & Consumables.,,17/10/2022,11060535,80085089,31.78,R,Amazon Payments UK Limited,2200305,
Schools Total,School Group 2 � Pupil Capacity 144-314,MCC Schools,Llantilio Pertholey CiW Primary School (VC),Supplies & Services,"Equipment, Furniture and Materials",Materials & Consumables.,,17/10/2022,11060536,80085089,12.24,R,Amazon Payments UK Limited,2200305,
"Facilities, Fleet & Decarbonisation",Transport Department,Communities & Place,Transport,Supplies & Services,"Equipment, Furniture and Materials",Materials & Consumables.,,17/10/2022,11058939,0,65.28,R,Mon & Border Motor Factors Ltd,200544,
"Facilities, Fleet & Decarbonisation",Transport Department,Communities & Place,Transport,Transport,Direct Transport Costs,All Other Non-Contract Transport Work.,,17/10/2022,11059116,0,4133.01,R,Walls Truck Services,212564,
"Facilities, Fleet & Decarbonisation",Transport Department,Communities & Place,Transport,Transport,Direct Transport Costs,All Other Non-Contract Transport Work.,,17/10/2022,11061420,0,105.75,R,Btac Bristol Ltd,2203552,
"Facilities, Fleet & Decarbonisation",Transport Department,Communities & Place,Transport,Supplies & Services,"Equipment, Furniture and Materials",Materials & Consumables.,,17/10/2022,11060292,0,179.7,R,Fast Fluid Power Ltd,256182,
"Facilities, Fleet & Decarbonisation",Transport Department,Communities & Place,Transport,Supplies & Services,"Equipment, Furniture and Materials",Materials & Consumables.,,17/10/2022,11060649,0,29.56,R,Mon & Border Motor Factors Ltd,200544,
"Facilities, Fleet & Decarbonisation",Transport Department,Communities & Place,Transport,Supplies & Services,"Equipment, Furniture and Materials",Materials & Consumables.,,17/10/2022,11060650,0,54,R,Mon & Border Motor Factors Ltd,200544,
Democratic Services,Democratic Services,People & Governance,Members Costs,Supplies & Services,"Printing, Stationery and General Office Expenses",Printing,,10/10/2022,11060491,10127233,210,R,Newport Printing Co Ltd,279985,
Schools Total,School Group 7 � Pupil Capacity 501-1800,MCC Schools,Monmouth Comprehensive,Supplies & Services,"Equipment, Furniture and Materials",Materials & Consumables.,,10/10/2022,11059650,0,56.17,R,REDACTED DATA,297160,
Schools Total,School Group 7 � Pupil Capacity 501-1800,MCC Schools,Monmouth Comprehensive,Supplies & Services,"Equipment, Furniture and Materials",Materials & Consumables.,,10/10/2022,11059650,0,172,R,REDACTED DATA,297160,
Schools Total,School Group 7 � Pupil Capacity 501-1800,MCC Schools,Monmouth Comprehensive,Supplies & Services,"Equipment, Furniture and Materials",Materials & Consumables.,,10/10/2022,11059650,0,44.33,R,REDACTED DATA,297160,
Schools Total,School Group 7 � Pupil Capacity 501-1800,MCC Schools,Monmouth Comprehensive,Supplies & Services,"Equipment, Furniture and Materials",Materials & Consumables.,,10/10/2022,11059650,0,654.95,R,REDACTED DATA,297160,
Schools Total,School Group 7 � Pupil Capacity 501-1800,MCC Schools,Caldicot School,Employees,Indirect Employee Expenses,"Course, Conference And Seminar Fees",,04/10/2022,11058876,80088800,550,R,NCFE,2202161,
Schools Total,School Group 7 � Pupil Capacity 501-1800,MCC Schools,Caldicot School,Supplies & Services,"Equipment, Furniture and Materials",Materials & Consumables.,,04/10/2022,11058872,80088802,8.12,R,Amazon Payments UK Limited,2200305,
Schools Total,School Group 1 � Pupil Capacity 1-143,MCC Schools,Llandogo Primary School,Supplies & Services,"Equipment, Furniture and Materials",Equipment Purchases,,19/10/2022,11062970,80087432,8.95,R,ESPO,273847,
Schools Total,School Group 7 � Pupil Capacity 501-1800,MCC Schools,Caldicot School,Supplies & Services,"Equipment, Furniture and Materials",Materials & Consumables.,,27/10/2022,11067709,80089148,66.6,R,Amazon Payments UK Limited,2200305,
Schools Total,School Group 7 � Pupil Capacity 501-1800,MCC Schools,Caldicot School,Supplies & Services,"Equipment, Furniture and Materials",Materials & Consumables.,,27/10/2022,11067710,80089148,4.16,R,Amazon Payments UK Limited,2200305,
Schools Total,School Group 7 � Pupil Capacity 501-1800,MCC Schools,Caldicot School,Supplies & Services,"Equipment, Furniture and Materials",Materials & Consumables.,,27/10/2022,11067711,80089148,2.32,R,Amazon Payments UK Limited,2200305,
Schools Total,School Group 7 � Pupil Capacity 501-1800,MCC Schools,Caldicot School,Supplies & Services,"Equipment, Furniture and Materials",Materials & Consumables.,,27/10/2022,11067712,80089148,17.71,R,Amazon Payments UK Limited,2200305,
Schools Total,School Group 7 � Pupil Capacity 501-1800,MCC Schools,Caldicot School,Supplies & Services,"Equipment, Furniture and Materials",Materials & Consumables.,,27/10/2022,11067713,80089148,12.49,R,Amazon Payments UK Limited,2200305,
Neighbourhood Services,Highways,Communities & Place,Overhead - Mon Highways,Premises,Water Services,Water Services-Metered.,,19/10/2022,11062925,818736,32.16,R,Aquam Water Services,299431,
Schools Total,School Group 7 � Pupil Capacity 501-1800,MCC Schools,Chepstow School,Supplies & Services,"Equipment, Furniture and Materials",Provisions.,,10/10/2022,11059833,80088586,59.15,R,Amazon Payments UK Limited,2200305,
Schools Total,SCHGRP3 � School Group 3 � Pupil Capacity 315-500,MCC Schools,Deri View Primary School,Supplies & Services,"Equipment, Furniture and Materials",Provisions.,,12/10/2022,11060398,80088178,97.5,R,REDACTED PERSONAL DATA,2202598,
Community Care,Community Care Team,Social Care and Health,Mental Health Care Team,Third Party Payments,Third Party,Personal Care.,,03/10/2022,11058887,0,3281.38,R,Allied Healthcare Services Limited,228252,
Community Care,ADULT DISABILITY SERVICES,Social Care and Health,CLDT,Third Party Payments,Third Party,Personal Care.,,03/10/2022,11058948,0,7467.76,R,Cariad Domiciliary Support Services Ltd,298167,
"Enterprise, Housing & Community Animation",General Fund Housing,Communities & Place,Melin PSL (Private Sector Leasing),Premises,Rents,Rents/Hire Of Premises.,,21/10/2022,11064800,0,446,R,REDACTED PERSONAL DATA,281946,
Children Services,Supporting Children & Young People Service,Social Care and Health,Family Time Service,Premises,Rents,Rents/Hire Of Premises.,,06/10/2022,11058830,10124747,48,R,CFCS Ltd (Child Focused Childrens Services Ltd),295913,
"Leisure, Youth & Outdoor Adventure",Youth & Education,MonLife Directorate,Gilwern,Supplies & Services,Services,Sub-Contractors Fees,,07/10/2022,11059460,10126880,120,R,REDACTED PERSONAL DATA,2204271,
"Enterprise, Housing & Community Animation",General Fund Housing,Communities & Place,Homelessness,Supplies & Services,Services,Homelessness Bed & Breakfast Accomodation,,12/10/2022,11060444,10123709,4200,R,Cherryberry Lodges,2203896,
"Enterprise, Housing & Community Animation",General Fund Housing,Communities & Place,Homelessness,Supplies & Services,Services,Homelessness Bed & Breakfast Accomodation,,28/10/2022,11068416,10125561,1659,R,The Park Hotel,2202558,
"Enterprise, Housing & Community Animation",Business Growth & Enterprise,Communities & Place,Infuse � East Wales,Premises,Rents,Rents/Hire Of Premises.,,28/10/2022,11068456,10127726,950,R,BIZSPACE Limited,2204314,
"Enterprise, Housing & Community Animation",General Fund Housing,Communities & Place,Melin PSL (Private Sector Leasing),Premises,Rents,Rents/Hire Of Premises.,,21/10/2022,11064806,0,650,R,REDACTED PERSONAL DATA,2202564,
"Enterprise, Housing & Community Animation",General Fund Housing,Communities & Place,Melin PSL (Private Sector Leasing),Premises,Rents,Rents/Hire Of Premises.,,21/10/2022,11064807,0,560,R,REDACTED PERSONAL DATA,281946,
"Enterprise, Housing & Community Animation",General Fund Housing,Communities & Place,Melin PSL (Private Sector Leasing),Premises,Rents,Rents/Hire Of Premises.,,21/10/2022,11064808,0,500,R,REDACTED PERSONAL DATA,281946,
"Enterprise, Housing & Community Animation",General Fund Housing,Communities & Place,Melin PSL (Private Sector Leasing),Premises,Rents,Rents/Hire Of Premises.,,21/10/2022,11064809,0,500,R,REDACTED PERSONAL DATA,281946,
"Enterprise, Housing & Community Animation",General Fund Housing,Communities & Place,Melin PSL (Private Sector Leasing),Premises,Rents,Rents/Hire Of Premises.,,21/10/2022,11064810,0,500,R,REDACTED PERSONAL DATA,281946,
"Enterprise, Housing & Community Animation",General Fund Housing,Communities & Place,Melin PSL (Private Sector Leasing),Premises,Rents,Rents/Hire Of Premises.,,21/10/2022,11064811,0,500,R,REDACTED PERSONAL DATA,281946,
"Enterprise, Housing & Community Animation",General Fund Housing,Communities & Place,Melin PSL (Private Sector Leasing),Premises,Rents,Rents/Hire Of Premises.,,21/10/2022,11064812,0,550,R,REDACTED PERSONAL DATA,2201627,
"Enterprise, Housing & Community Animation",General Fund Housing,Communities & Place,Melin PSL (Private Sector Leasing),Premises,Rents,Rents/Hire Of Premises.,,21/10/2022,11064813,0,650,R,HRT Ltd,2203203,
"Enterprise, Housing & Community Animation",General Fund Housing,Communities & Place,Melin PSL (Private Sector Leasing),Premises,Rents,Rents/Hire Of Premises.,,21/10/2022,11064814,0,550,R,REDACTED PERSONAL DATA,2203496,
"Enterprise, Housing & Community Animation",General Fund Housing,Communities & Place,Lodgings Scheme,Premises,Rents,Rents/Hire Of Premises.,,24/10/2022,11065200,0,442.85,R,Highmore Investments Ltd,2203559,
"Enterprise, Housing & Community Animation",General Fund Housing,Communities & Place,Lodgings Scheme,Premises,Rents,Rents/Hire Of Premises.,,24/10/2022,11065191,0,553.57,R,REDACTED PERSONAL DATA,292592,
"Enterprise, Housing & Community Animation",General Fund Housing,Communities & Place,Lodgings Scheme,Premises,Rents,Rents/Hire Of Premises.,,24/10/2022,11065192,0,553.57,R,REDACTED PERSONAL DATA,292592,
"Enterprise, Housing & Community Animation",General Fund Housing,Communities & Place,Lodgings Scheme,Premises,Rents,Rents/Hire Of Premises.,,24/10/2022,11065193,0,553.57,R,REDACTED PERSONAL DATA,292592,
"Enterprise, Housing & Community Animation",General Fund Housing,Communities & Place,Lodgings Scheme,Premises,Rents,Rents/Hire Of Premises.,,24/10/2022,11065194,0,553.57,R,REDACTED PERSONAL DATA,292592,
"Enterprise, Housing & Community Animation",General Fund Housing,Communities & Place,Lodgings Scheme,Premises,Rents,Rents/Hire Of Premises.,,24/10/2022,11065195,0,553.57,R,REDACTED PERSONAL DATA,292592,
"Enterprise, Housing & Community Animation",General Fund Housing,Communities & Place,Lodgings Scheme,Premises,Rents,Rents/Hire Of Premises.,,24/10/2022,11065196,0,553.57,R,REDACTED PERSONAL DATA,292592,
"Enterprise, Housing & Community Animation",General Fund Housing,Communities & Place,Lodgings Scheme,Premises,Rents,Rents/Hire Of Premises.,,24/10/2022,11065197,0,553.57,R,REDACTED PERSONAL DATA,292592,
"Enterprise, Housing & Community Animation",General Fund Housing,Communities & Place,Lodgings Scheme,Premises,Rents,Rents/Hire Of Premises.,,24/10/2022,11065198,0,553.57,R,REDACTED PERSONAL DATA,292592,
"Enterprise, Housing & Community Animation",General Fund Housing,Communities & Place,Lodgings Scheme,Premises,Rents,Rents/Hire Of Premises.,,24/10/2022,11065199,0,442.85,R,Highmore Investments Ltd,2203559,
"Enterprise, Housing & Community Animation",General Fund Housing,Communities & Place,Lodgings Scheme,Premises,Rents,Rents/Hire Of Premises.,,24/10/2022,11065201,0,328.57,R,REDACTED PERSONAL DATA,298535,
"Enterprise, Housing & Community Animation",General Fund Housing,Communities & Place,Lodgings Scheme,Premises,Rents,Rents/Hire Of Premises.,,24/10/2022,11065202,0,235.71,R,REDACTED PERSONAL DATA,298535,
"Enterprise, Housing & Community Animation",General Fund Housing,Communities & Place,Lodgings Scheme,Premises,Rents,Rents/Hire Of Premises.,,24/10/2022,11065203,0,235.71,R,REDACTED PERSONAL DATA,298535,
"Enterprise, Housing & Community Animation",General Fund Housing,Communities & Place,Lodgings Scheme,Premises,Rents,Rents/Hire Of Premises.,,24/10/2022,11065204,0,442.86,R,REDACTED PERSONAL DATA,298535,
"Enterprise, Housing & Community Animation",General Fund Housing,Communities & Place,Lodgings Scheme,Premises,Rents,Rents/Hire Of Premises.,,24/10/2022,11065205,0,442.86,R,REDACTED PERSONAL DATA,298535,
"Enterprise, Housing & Community Animation",General Fund Housing,Communities & Place,Lodgings Scheme,Premises,Rents,Rents/Hire Of Premises.,,24/10/2022,11065206,0,442.86,R,REDACTED PERSONAL DATA,298535,
Community Care,Community Care Team,Social Care and Health,Abergavenny Adult Team,Supplies & Services,"Printing, Stationery and General Office Expenses",Stationery,,04/10/2022,11058844,10126686,104.5,R,Charfleet Bindery,256894,
Schools Total,School Group 7 � Pupil Capacity 501-1800,MCC Schools,Caldicot School,Supplies & Services,Communications and Computing,IT Hardware,,04/10/2022,11058867,80088802,224.72,R,Amazon Payments UK Limited,2200305,
Neighbourhood Services,Highways,Communities & Place,Overhead - Mon Highways,Supplies & Services,"Equipment, Furniture and Materials",Materials & Consumables.,,19/10/2022,11062933,10125897,32.64,R,Robert Price Builders Merchants Ltd,200061,
Schools Total,School Group 7 � Pupil Capacity 501-1800,MCC Schools,Chepstow School,Employees,Direct Employee Expenses,Agency Staff,,25/10/2022,11065541,0,199.55,R,New Directions Education Ltd,233905,
Schools Total,School Group 7 � Pupil Capacity 501-1800,MCC Schools,Chepstow School,Employees,Direct Employee Expenses,Agency Staff,,25/10/2022,11065542,0,199.55,R,New Directions Education Ltd,233905,
Schools Total,School Group 7 � Pupil Capacity 501-1800,MCC Schools,Chepstow School,Employees,Direct Employee Expenses,Agency Staff,,25/10/2022,11065543,0,199.55,R,New Directions Education Ltd,233905,
Schools Total,School Group 7 � Pupil Capacity 501-1800,MCC Schools,Chepstow School,Employees,Direct Employee Expenses,Agency Staff,,25/10/2022,11065544,0,199.65,R,New Directions Education Ltd,233905,
"Commercial, Corporate & landlord Services",Asset Management,Resources,MCC Markets,Premises,"Repairs, Alterations & Maintenance of Buildings",Building Improvements / Maintenance,,27/10/2022,11067821,90066248,660,R,P&P Pest Control,200833,
Schools Total,SCHGRP3 � School Group 3 � Pupil Capacity 315-500,MCC Schools,Magor CiW Primary School (VA),Supplies & Services,Communications and Computing,IT Hardware,,27/10/2022,11067699,80087412,180,R,Microsmith Electronics Ltd,2200934,
Neighbourhood Services,Highways,Communities & Place,Overhead - Mon Highways,Supplies & Services,"Equipment, Furniture and Materials",Materials & Consumables.,,10/10/2022,11060434,815930,242.88,R,Speedy Asset Services Limited,255427,
"Facilities, Fleet & Decarbonisation",Catering Services,Communities & Place,Schools Catering,Supplies & Services,"Clothes, Uniform and Laundry",Clothing And Uniforms,,10/10/2022,11060433,819018,131.4,R,Evolve Corporate Ltd T/A PK Safety,294571,
"Enterprise, Housing & Community Animation",Business Growth & Enterprise,Communities & Place,CELT,Supplies & Services,Services,Training Charges,,12/10/2022,11059419,10127403,311.66,R,SFM Training Wales,2201172,
"Commercial, Corporate & landlord Services",Property Services & Facilities Management,Resources,Office Services,Supplies & Services,Services,Professional And Specialist Fees,,12/10/2022,11059888,90062845,451.65,R,Hutchison 3G UK Limited,2203517,
Schools Total,School Group 7 � Pupil Capacity 501-1800,MCC Schools,Caldicot School,Employees,Direct Employee Expenses,Agency Staff,,28/10/2022,11068625,80089555,625,R,Highgrade Recruitment Ltd,294722,
Schools Total,School Group 7 � Pupil Capacity 501-1800,MCC Schools,Caldicot School,Employees,Direct Employee Expenses,Agency Staff,,28/10/2022,11068626,80089556,569.3,R,Teaching Personnel,249395,
Schools Total,School Group 7 � Pupil Capacity 501-1800,MCC Schools,Caldicot School,Employees,Direct Employee Expenses,Agency Staff,,28/10/2022,11068626,80089556,227.72,R,Teaching Personnel,249395,
"Enterprise, Housing & Community Animation",Business Growth & Enterprise,Communities & Place,Food4Growth,Supplies & Services,Services,Professional And Specialist Fees,,29/09/2022,11059718,0,12458.34,R,Food and Drink Forum,2204313,
Schools Total,School Group 7 � Pupil Capacity 501-1800,MCC Schools,Monmouth Comprehensive,Premises,"Repairs, Alterations & Maintenance of Buildings",Premises Repairs And Maintenance,,10/10/2022,11059650,0,50,R,REDACTED DATA,297160,
Neighbourhood Services,Highways,Communities & Place,Stores,Current Assets,Inventories,Stock Received Suspense,,10/10/2022,11060423,819055,37944.72,R,Estuary Oils,298577,
People,Training,People & Governance,Corporate Training,Supplies & Services,Services,Training Charges,,10/10/2022,11059690,10127055,380,R,REDACTED PERSONAL DATA,268494,
People,Training,People & Governance,Corporate Training,Supplies & Services,Services,Training Charges,,10/10/2022,11059691,10127056,380,R,REDACTED PERSONAL DATA,268494,
Neighbourhood Services,Waste and Street Services,Communities & Place,Grounds,Supplies & Services,"Equipment, Furniture and Materials",Materials & Consumables.,,10/10/2022,11058809,10123095,415.78,R,Tudor Environmental,296280,
Schools Total,School Group 7 � Pupil Capacity 501-1800,MCC Schools,Caldicot School,Employees,Direct Employee Expenses,Agency Staff,,28/10/2022,11068626,80089556,1013.45,R,Teaching Personnel,249395,
Schools Total,School Group 7 � Pupil Capacity 501-1800,MCC Schools,Caldicot School,Employees,Direct Employee Expenses,Agency Staff,,28/10/2022,11068626,80089556,202.69,R,Teaching Personnel,249395,
Schools Total,School Group 7 � Pupil Capacity 501-1800,MCC Schools,Caldicot School,Employees,Direct Employee Expenses,Agency Staff,,28/10/2022,11068626,80089556,80.67,R,Teaching Personnel,249395,
Schools Total,School Group 7 � Pupil Capacity 501-1800,MCC Schools,Caldicot School,Employees,Direct Employee Expenses,Agency Staff,,28/10/2022,11068626,80089556,227.72,R,Teaching Personnel,249395,
Schools Total,School Group 7 � Pupil Capacity 501-1800,MCC Schools,Caldicot School,Employees,Direct Employee Expenses,Agency Staff,,28/10/2022,11068626,80089556,569.3,R,Teaching Personnel,249395,
Community Care,ADULT DISABILITY SERVICES,Social Care and Health,CLDT,Third Party Payments,Third Party,Personal Care.,,03/10/2022,11058852,0,1230,R,Blaenau Gwent County Borough Council,234013,
Community Care,ADULT DISABILITY SERVICES,Social Care and Health,CLDT,Third Party Payments,Third Party,Personal Care.,,03/10/2022,11058853,0,922.5,R,Blaenau Gwent County Borough Council,234013,
Community Care,ADULT DISABILITY SERVICES,Social Care and Health,CLDT,Third Party Payments,Third Party,Personal Care.,,03/10/2022,11058855,0,8934.92,R,Grove Care Partnership Limited (Consensus),230551,
Community Care,Community Care Team,Social Care and Health,Mental Health Care Team,Third Party Payments,Third Party,Personal Care.,,03/10/2022,11058861,0,1184.2,R,Allied Healthcare Services Limited,228252,
Schools Total,School Group 2 � Pupil Capacity 144-314,MCC Schools,Llantilio Pertholey CiW Primary School (VC),Supplies & Services,"Equipment, Furniture and Materials",Materials & Consumables.,,27/10/2022,11064666,80085089,94.12,R,Amazon Payments UK Limited,2200305,
Schools Total,School Group 7 � Pupil Capacity 501-1800,MCC Schools,Caldicot School,Supplies & Services,"Equipment, Furniture and Materials",Furniture Purchases / Replacement,,27/10/2022,11067714,80089148,379.99,R,Amazon Payments UK Limited,2200305,
Schools Total,School Group 2 � Pupil Capacity 144-314,MCC Schools,Thornwell Primary School,Supplies & Services,"Equipment, Furniture and Materials",Equipment Purchases,,27/10/2022,11067830,80088790,19.92,R,Amazon Payments UK Limited,2200305,
"Facilities, Fleet & Decarbonisation",Home to School Transport Dept,Communities & Place,SCH Transport,Transport,Contract Hire and Operating Leases,PTU Vehicle Contracts,,06/10/2022,11059322,0,3338.49,R,Oscars Taxis,2201001,
Adult Services,Grant Schemes SHS,Social Care and Health,Training,Supplies & Services,Expenses,Non Employee Training Courses,,12/10/2022,11060221,10127216,60,R,Haven Mobility,270506,
"Facilities, Fleet & Decarbonisation",Catering Services,Communities & Place,Schools Catering,Supplies & Services,"Equipment, Furniture and Materials",Materials & Consumables.,,12/10/2022,11060208,10126861,37.78,R,Nisbets,218815,
"Facilities, Fleet & Decarbonisation",Catering Services,Communities & Place,Schools Catering,Supplies & Services,"Equipment, Furniture and Materials",Materials & Consumables.,,10/10/2022,11059025,10122775,139.3,R,Castell Howell Foods Ltd,261117,
Schools Total,School Group 7 � Pupil Capacity 501-1800,MCC Schools,King Henry VIII Comprehensive,Supplies & Services,"Equipment, Furniture and Materials",Equipment Purchases,,12/10/2022,11060455,80088919,19.92,R,Amazon Payments UK Limited,2200305,
Schools Total,School Group 7 � Pupil Capacity 501-1800,MCC Schools,King Henry VIII Comprehensive,Supplies & Services,"Equipment, Furniture and Materials",Equipment Purchases,,12/10/2022,11060455,80088919,0.94,R,Amazon Payments UK Limited,2200305,
Schools Total,SCHGRP3 � School Group 3 � Pupil Capacity 315-500,MCC Schools,Deri View Primary School,Supplies & Services,"Equipment, Furniture and Materials",Equipment Purchases,,07/10/2022,11059480,80087771,448,R,Bishop Sports And Leisure Limited,249956,
Schools Total,School Group 7 � Pupil Capacity 501-1800,MCC Schools,Monmouth Comprehensive,Supplies & Services,Expenses,Exam Fees (Schools),,28/10/2022,11068590,80081677,363,R,WJEC CBAC Limited,248050,
Schools Total,School Group 2 � Pupil Capacity 144-314,MCC Schools,Raglan CiW Primary School (VC),Supplies & Services,"Equipment, Furniture and Materials",Equipment Purchases,,07/10/2022,11059780,80088832,22.6,R,Amazon  Payments UK Ltd (Punchout),2202048,
Schools Total,School Group 7 � Pupil Capacity 501-1800,MCC Schools,Chepstow School,Supplies & Services,"Equipment, Furniture and Materials",Materials & Consumables.,,07/10/2022,11059845,80088875,13.07,R,Amazon Payments UK Limited,2200305,
Schools Total,School Group 7 � Pupil Capacity 501-1800,MCC Schools,King Henry VIII Comprehensive,Supplies & Services,"Equipment, Furniture and Materials",Equipment Purchases,,12/10/2022,11060456,80088919,39.84,R,Amazon Payments UK Limited,2200305,
Schools Total,School Group 7 � Pupil Capacity 501-1800,MCC Schools,King Henry VIII Comprehensive,Supplies & Services,"Equipment, Furniture and Materials",Equipment Purchases,,12/10/2022,11060456,80088919,2.03,R,Amazon Payments UK Limited,2200305,
Schools Total,School Group 7 � Pupil Capacity 501-1800,MCC Schools,King Henry VIII Comprehensive,Supplies & Services,"Equipment, Furniture and Materials",Equipment Purchases,,12/10/2022,11060466,80088919,45.79,R,Amazon Payments UK Limited,2200305,
Schools Total,School Group 7 � Pupil Capacity 501-1800,MCC Schools,King Henry VIII Comprehensive,Supplies & Services,"Equipment, Furniture and Materials",Equipment Purchases,,12/10/2022,11060466,80088919,1.62,R,Amazon Payments UK Limited,2200305,
Schools Total,School Group 7 � Pupil Capacity 501-1800,MCC Schools,King Henry VIII Comprehensive,Supplies & Services,"Equipment, Furniture and Materials",Equipment Purchases,,12/10/2022,11060471,80088527,11.59,R,Amazon Payments UK Limited,2200305,
"Facilities, Fleet & Decarbonisation",Catering Services,Communities & Place,Schools Catering,Supplies & Services,"Equipment, Furniture and Materials",Materials & Consumables.,,19/10/2022,11059663,10122779,224.33,R,Newhall Janitorial Ltd,200912,
"Facilities, Fleet & Decarbonisation",Catering Services,Communities & Place,Schools Catering,Supplies & Services,"Equipment, Furniture and Materials",Materials & Consumables.,,19/10/2022,11060731,10122779,45.78,R,Newhall Janitorial Ltd,200912,
"Facilities, Fleet & Decarbonisation",Catering Services,Communities & Place,Schools Catering,Supplies & Services,"Equipment, Furniture and Materials",Materials & Consumables.,,19/10/2022,11061783,10122778,1234.11,R,Raglan Dairy Ltd,296621,
"Facilities, Fleet & Decarbonisation",Catering Services,Communities & Place,Schools Catering,Supplies & Services,"Equipment, Furniture and Materials",Materials & Consumables.,,19/10/2022,11061784,10122778,1649.5,R,Raglan Dairy Ltd,296621,
Schools Total,School Group 2 � Pupil Capacity 144-314,MCC Schools,Llantilio Pertholey CiW Primary School (VC),Supplies & Services,"Equipment, Furniture and Materials",Materials & Consumables.,,17/10/2022,11060777,80085089,155.02,R,Amazon Payments UK Limited,2200305,
Schools Total,School Group 2 � Pupil Capacity 144-314,MCC Schools,Llantilio Pertholey CiW Primary School (VC),Supplies & Services,"Equipment, Furniture and Materials",Materials & Consumables.,,17/10/2022,11060377,80085089,19.16,R,Amazon Payments UK Limited,2200305,
Schools Total,School Group 2 � Pupil Capacity 144-314,MCC Schools,Llantilio Pertholey CiW Primary School (VC),Supplies & Services,"Equipment, Furniture and Materials",Materials & Consumables.,,17/10/2022,11060378,80085089,168.81,R,Amazon Payments UK Limited,2200305,
Schools Total,School Group 2 � Pupil Capacity 144-314,MCC Schools,Llantilio Pertholey CiW Primary School (VC),Supplies & Services,"Equipment, Furniture and Materials",Materials & Consumables.,,17/10/2022,11060776,80085089,155.02,R,Amazon Payments UK Limited,2200305,
Schools Total,School Group 2 � Pupil Capacity 144-314,MCC Schools,Llantilio Pertholey CiW Primary School (VC),Supplies & Services,"Equipment, Furniture and Materials",Materials & Consumables.,,17/10/2022,11060376,80085089,38.9,R,Amazon Payments UK Limited,2200305,
Schools Total,School Group 2 � Pupil Capacity 144-314,MCC Schools,Raglan CiW Primary School (VC),Supplies & Services,"Equipment, Furniture and Materials",Equipment Purchases,,07/10/2022,11059780,80088832,25.6,R,Amazon  Payments UK Ltd (Punchout),2202048,
Schools Total,School Group 7 � Pupil Capacity 501-1800,MCC Schools,Monmouth Comprehensive,Supplies & Services,Expenses,Exam Fees (Schools),,28/10/2022,11068602,80085393,79.1,R,WJEC CBAC Limited,248050,
Schools Total,School Group 2 � Pupil Capacity 144-314,MCC Schools,Llantilio Pertholey CiW Primary School (VC),Supplies & Services,"Equipment, Furniture and Materials",Materials & Consumables.,,28/10/2022,11068614,80089293,33,R,YPO,281293,
Schools Total,School Group 2 � Pupil Capacity 144-314,MCC Schools,Gilwern Primary School,Supplies & Services,"Equipment, Furniture and Materials",Equipment Purchases,,28/10/2022,11068630,80089562,1108.22,R,Hopscotch Childcare,298463,
"Enterprise, Housing & Community Animation",General Fund Housing,Communities & Place,Lodgings Scheme,Premises,Energy Costs,Electricity.,,07/10/2022,11060024,10127170,308.95,R,REDACTED PERSONAL DATA,295766,
"Enterprise, Housing & Community Animation",General Fund Housing,Communities & Place,Lodgings Scheme,Premises,Energy Costs,Electricity.,,07/10/2022,11060025,10127171,446.55,R,REDACTED PERSONAL DATA,295766,
Schools Total,School Group 2 � Pupil Capacity 144-314,MCC Schools,Llantilio Pertholey CiW Primary School (VC),Employees,Direct Employee Expenses,Agency Staff,,17/10/2022,11060047,80085334,1039.35,R,TeacherActive,297314,
Schools Total,School Group 2 � Pupil Capacity 144-314,MCC Schools,Dewstow Primary School,Employees,Direct Employee Expenses,Agency Staff,,10/10/2022,11060050,80085518,1477.6,R,Teaching 4 Wales Ltd,267637,
Schools Total,School Group 2 � Pupil Capacity 144-314,MCC Schools,Rogiet Primary School,Employees,Direct Employee Expenses,Agency Staff,,10/10/2022,11060046,80085323,3208.92,R,Teaching 4 Wales Ltd,267637,
Children Services,Children Services Other,Social Care and Health,Children � Service Contracts,Third Party Payments,Third Party,General Contracts,,10/10/2022,11059684,10125581,28829.5,R,Barnardos Services Ltd,257816,
Standards,Additional Learning Needs,Children & Young People,ALN Transport,Employees,Direct Employee Expenses,Travel Claims Allowance,,28/10/2022,11067938,0,147.42,R,REDACTED PERSONAL DATA,2203959,
Schools Total,School Group 2 � Pupil Capacity 144-314,MCC Schools,Shirenewton Primary School,Employees,Direct Employee Expenses,Agency Staff,,10/10/2022,11060045,80085293,3928.52,R,Teaching 4 Wales Ltd,267637,
Schools Total,SCHGRP3 � School Group 3 � Pupil Capacity 315-500,MCC Schools,Deri View Primary School,Employees,Direct Employee Expenses,Agency Staff,,27/10/2022,11063266,80088576,4180.75,R,Teaching Personnel,249395,
Children Services,Children Services Teams,Social Care and Health,Long Term Support Team,Third Party Payments,Third Party,General Contracts,,27/10/2022,11067689,10127315,935,R,NYAS,298777,
Schools Total,School Group 2 � Pupil Capacity 144-314,MCC Schools,Cross Ash Primary School,Employees,Direct Employee Expenses,Agency Staff,,25/10/2022,11065547,0,49.36,R,New Directions Education Ltd,233905,
Schools Total,School Group 2 � Pupil Capacity 144-314,MCC Schools,Cross Ash Primary School,Employees,Direct Employee Expenses,Agency Staff,,25/10/2022,11065546,0,49.36,R,New Directions Education Ltd,233905,
Schools Total,School Group 2 � Pupil Capacity 144-314,MCC Schools,Cross Ash Primary School,Employees,Direct Employee Expenses,Agency Staff,,25/10/2022,11065545,0,49.36,R,New Directions Education Ltd,233905,
Capital Division,Capital Dept,Capital,Capital Programme,Third Party Payments,Third Party,General Contracts,,06/10/2022,11059656,10121188,39761.8,C,Enerveo Ltd,212966,
Schools Total,School Group 7 � Pupil Capacity 501-1800,MCC Schools,Monmouth Comprehensive,Employees,Direct Employee Expenses,Agency Staff,,28/10/2022,11068594,80085160,558.1,R,TeacherActive,297314,
Schools Total,School Group 7 � Pupil Capacity 501-1800,MCC Schools,Monmouth Comprehensive,Employees,Direct Employee Expenses,Agency Staff,,28/10/2022,11068595,80085160,188.03,R,TeacherActive,297314,
Schools Total,School Group 7 � Pupil Capacity 501-1800,MCC Schools,Monmouth Comprehensive,Employees,Direct Employee Expenses,Agency Staff,,28/10/2022,11068596,80085160,558.1,R,TeacherActive,297314,
Schools Total,School Group 7 � Pupil Capacity 501-1800,MCC Schools,Monmouth Comprehensive,Employees,Direct Employee Expenses,Agency Staff,,28/10/2022,11068597,80085160,934.16,R,TeacherActive,297314,
Schools Total,School Group 7 � Pupil Capacity 501-1800,MCC Schools,Monmouth Comprehensive,Employees,Direct Employee Expenses,Agency Staff,,28/10/2022,11068598,80085160,1498.25,R,TeacherActive,297314,
Schools Total,School Group 7 � Pupil Capacity 501-1800,MCC Schools,King Henry VIII Comprehensive,Employees,Direct Employee Expenses,Agency Staff,,25/10/2022,11065575,0,126.35,R,New Directions Education Ltd,233905,
Capital Division,Capital Dept,Capital,Capital Programme,Third Party Payments,Third Party,General Contracts,,28/10/2022,11068542,10125476,1305.13,C,Capita (Real Estate & Infrastructure) Ltd,281283,
Schools Total,School Group 2 � Pupil Capacity 144-314,MCC Schools,Raglan CiW Primary School (VC),Employees,Direct Employee Expenses,Agency Staff,,28/10/2022,11068632,80089565,1013.35,R,New Directions Education Ltd,233905,
Schools Total,School Group 7 � Pupil Capacity 501-1800,MCC Schools,Chepstow School,Premises,"Repairs, Alterations & Maintenance of Buildings",Security Maintenance.,,10/10/2022,11060479,80085221,37.5,R,Chamberlains Security,299800,
Schools Total,SCHGRP3 � School Group 3 � Pupil Capacity 315-500,MCC Schools,Overmonnow Primary School,Employees,Direct Employee Expenses,Agency Staff,,10/10/2022,11060478,80088150,2338.06,R,Teaching Personnel,249395,
Schools Total,School Group 7 � Pupil Capacity 501-1800,MCC Schools,Monmouth Comprehensive,Employees,Direct Employee Expenses,Agency Staff,,28/10/2022,11068591,80085160,564.09,R,TeacherActive,297314,
Schools Total,School Group 7 � Pupil Capacity 501-1800,MCC Schools,Monmouth Comprehensive,Employees,Direct Employee Expenses,Agency Staff,,28/10/2022,11068592,80085160,334.86,R,TeacherActive,297314,
Schools Total,School Group 7 � Pupil Capacity 501-1800,MCC Schools,Monmouth Comprehensive,Employees,Direct Employee Expenses,Agency Staff,,28/10/2022,11068593,80085160,376.06,R,TeacherActive,297314,
Schools Total,School Group 7 � Pupil Capacity 501-1800,MCC Schools,Chepstow School,Premises,"Repairs, Alterations & Maintenance of Buildings",Security Maintenance.,,10/10/2022,11060480,80085221,37.5,R,Chamberlains Security,299800,
Neighbourhood Services,Waste and Street Services,Communities & Place,Refuse & Cleansing Operations,Third Party Payments,Third Party,General Contracts,,10/10/2022,11060349,10123525,3663.1,R,Homemakers Community Recycling,249236,
Schools Total,School Group 2 � Pupil Capacity 144-314,MCC Schools,Rogiet Primary School,Employees,Direct Employee Expenses,Agency Staff,,17/10/2022,11061823,80088179,320.8,R,Prospero Teaching,296276,
Schools Total,SCHGRP3 � School Group 3 � Pupil Capacity 315-500,MCC Schools,Deri View Primary School,Employees,Direct Employee Expenses,Agency Staff,,07/10/2022,11060260,80088576,597.25,R,Teaching Personnel,249395,
Schools Total,SCHGRP3 � School Group 3 � Pupil Capacity 315-500,MCC Schools,Deri View Primary School,Employees,Direct Employee Expenses,Agency Staff,,07/10/2022,11060258,80088576,597.25,R,Teaching Personnel,249395,
Schools Total,SCHGRP3 � School Group 3 � Pupil Capacity 315-500,MCC Schools,Deri View Primary School,Employees,Direct Employee Expenses,Agency Staff,,07/10/2022,11060259,80088576,4180.75,R,Teaching Personnel,249395,
"Enterprise, Housing & Community Animation",General Fund Housing,Communities & Place,Homelessness,Premises,"Repairs, Alterations & Maintenance of Buildings",Security Of Premises.,,07/10/2022,11029560,0,5148,R,M J Events Support Ltd,296340,
Schools Total,School Group 2 � Pupil Capacity 144-314,MCC Schools,Thornwell Primary School,Premises,Ground Maintenance Costs,Grounds Maintenance - Direct.,,07/10/2022,11060307,80088301,3225,R,Playwood,2203492,
Schools Total,School Group 7 � Pupil Capacity 501-1800,MCC Schools,Chepstow School,Supplies & Services,"Equipment, Furniture and Materials",Provisions.,,07/10/2022,11060057,80087084,18.17,R,RM Educational Resources Ltd,213173,
Schools Total,School Group 7 � Pupil Capacity 501-1800,MCC Schools,Chepstow School,Supplies & Services,"Equipment, Furniture and Materials",Provisions.,,07/10/2022,11060058,80087084,96.25,R,RM Educational Resources Ltd,213173,
"Enterprise, Housing & Community Animation",General Fund Housing,Communities & Place,Lodgings Scheme,Premises,Energy Costs,Electricity.,,07/10/2022,11060023,10127169,170,R,REDACTED PERSONAL DATA,295766,
Schools Total,School Group 7 � Pupil Capacity 501-1800,MCC Schools,Chepstow School,Supplies & Services,"Equipment, Furniture and Materials",Provisions.,,17/10/2022,11061381,80086417,25.98,R,RM Educational Resources Ltd,213173,
"Enterprise, Housing & Community Animation",General Fund Housing,Communities & Place,Lodgings Scheme,Premises,Rents,Rents/Hire Of Premises.,,24/10/2022,11065207,0,442.86,R,REDACTED PERSONAL DATA,298535,
"Enterprise, Housing & Community Animation",General Fund Housing,Communities & Place,Lodgings Scheme,Premises,Rents,Rents/Hire Of Premises.,,24/10/2022,11065208,0,442.86,R,REDACTED PERSONAL DATA,298535,
"Enterprise, Housing & Community Animation",General Fund Housing,Communities & Place,Lodgings Scheme,Premises,Rents,Rents/Hire Of Premises.,,24/10/2022,11065209,0,400,R,REDACTED PERSONAL DATA,298535,
"Enterprise, Housing & Community Animation",General Fund Housing,Communities & Place,Homelessness,Supplies & Services,Services,Homelessness Bed & Breakfast Accomodation,,17/10/2022,11061336,10123261,291.69,R,Raglan Lodge,2202447,
"Enterprise, Housing & Community Animation",General Fund Housing,Communities & Place,Melin PSL (Private Sector Leasing),Premises,Rents,Rents/Hire Of Premises.,,21/10/2022,11064815,0,485,R,REDACTED PERSONAL DATA,2203956,
Schools Total,School Group 2 � Pupil Capacity 144-314,MCC Schools,Cross Ash Primary School,Supplies & Services,"Equipment, Furniture and Materials",Advertising,,07/10/2022,11059838,80088773,141,R,Tindle Newspapers Wales & The Borders Ltd,241905,
"Enterprise, Housing & Community Animation",General Fund Housing,Communities & Place,Homelessness,Supplies & Services,Services,Homelessness Bed & Breakfast Accomodation,,07/10/2022,11059409,10123226,425.83,R,First Motorway Services Ltd,2203388,
"Enterprise, Housing & Community Animation",General Fund Housing,Communities & Place,Homelessness,Supplies & Services,Services,Homelessness Bed & Breakfast Accomodation,,07/10/2022,11059410,10123226,425.83,R,First Motorway Services Ltd,2203388,
"Enterprise, Housing & Community Animation",General Fund Housing,Communities & Place,Homelessness,Supplies & Services,Services,Homelessness Bed & Breakfast Accomodation,,07/10/2022,11060168,10123261,291.69,R,Raglan Lodge,2202447,
"Enterprise, Housing & Community Animation",General Fund Housing,Communities & Place,Homelessness,Supplies & Services,Services,Homelessness Bed & Breakfast Accomodation,,07/10/2022,11060169,10123261,291.69,R,Raglan Lodge,2202447,
"Enterprise, Housing & Community Animation",General Fund Housing,Communities & Place,Homelessness,Supplies & Services,Services,Homelessness Bed & Breakfast Accomodation,,07/10/2022,11060170,10123261,291.69,R,Raglan Lodge,2202447,
"Enterprise, Housing & Community Animation",General Fund Housing,Communities & Place,Homelessness,Supplies & Services,Services,Homelessness Bed & Breakfast Accomodation,,07/10/2022,11059408,10123226,425.83,R,First Motorway Services Ltd,2203388,
"Enterprise, Housing & Community Animation",General Fund Housing,Communities & Place,Homelessness,Supplies & Services,Services,Homelessness Bed & Breakfast Accomodation,,07/10/2022,11060165,10123261,291.69,R,Raglan Lodge,2202447,
"Enterprise, Housing & Community Animation",General Fund Housing,Communities & Place,Homelessness,Supplies & Services,Services,Homelessness Bed & Breakfast Accomodation,,07/10/2022,11060166,10123261,291.69,R,Raglan Lodge,2202447,
"Enterprise, Housing & Community Animation",General Fund Housing,Communities & Place,Homelessness,Supplies & Services,Services,Homelessness Bed & Breakfast Accomodation,,07/10/2022,11060167,10123261,291.69,R,Raglan Lodge,2202447,
Standards,Support Services,Children & Young People,Child Development Fund Grant,Supplies & Services,Services,Child Minding Fees,,07/10/2022,11060139,10122742,40,R,REDACTED PERSONAL DATA,2200180,
"Enterprise, Housing & Community Animation",General Fund Housing,Communities & Place,Lodgings Scheme,Premises,Rents,Rents/Hire Of Premises.,,24/10/2022,11065210,0,442.86,R,REDACTED PERSONAL DATA,298535,
"Enterprise, Housing & Community Animation",General Fund Housing,Communities & Place,Lodgings Scheme,Premises,Rents,Rents/Hire Of Premises.,,24/10/2022,11065211,0,235.71,R,REDACTED PERSONAL DATA,298535,
"Enterprise, Housing & Community Animation",General Fund Housing,Communities & Place,Lodgings Scheme,Premises,Rents,Rents/Hire Of Premises.,,24/10/2022,11065212,0,553.57,R,REDACTED PERSONAL DATA,2201256,
"Enterprise, Housing & Community Animation",General Fund Housing,Communities & Place,Lodgings Scheme,Premises,Rents,Rents/Hire Of Premises.,,24/10/2022,11065213,0,553.57,R,REDACTED PERSONAL DATA,2201256,
"Enterprise, Housing & Community Animation",General Fund Housing,Communities & Place,Lodgings Scheme,Premises,Rents,Rents/Hire Of Premises.,,24/10/2022,11065214,0,553.57,R,REDACTED PERSONAL DATA,2201256,
"Enterprise, Housing & Community Animation",General Fund Housing,Communities & Place,Lodgings Scheme,Premises,Rents,Rents/Hire Of Premises.,,24/10/2022,11065215,0,553.57,R,REDACTED PERSONAL DATA,2201256,
"Enterprise, Housing & Community Animation",General Fund Housing,Communities & Place,Lodgings Scheme,Premises,Rents,Rents/Hire Of Premises.,,24/10/2022,11065216,0,553.57,R,REDACTED PERSONAL DATA,2201256,
"Enterprise, Housing & Community Animation",General Fund Housing,Communities & Place,Lodgings Scheme,Premises,Rents,Rents/Hire Of Premises.,,24/10/2022,11065217,0,553.57,R,REDACTED PERSONAL DATA,2201256,
"Enterprise, Housing & Community Animation",General Fund Housing,Communities & Place,Homelessness,Supplies & Services,Services,Homelessness Bed & Breakfast Accomodation,,17/10/2022,11061337,10123261,291.69,R,Raglan Lodge,2202447,
Schools Total,School Group 7 � Pupil Capacity 501-1800,MCC Schools,Caldicot School,Premises,Cleaning and Domestic Supplies,Contract Cleaning - Premises (Direct),,07/10/2022,11060038,80085077,20007.01,R,Churchill Service Solutions,291141,
Schools Total,School Group 2 � Pupil Capacity 144-314,MCC Schools,Goytre Fawr Primary School,Premises,Cleaning and Domestic Supplies,Contract Cleaning - Premises (Direct),,07/10/2022,11060240,80085172,1668.83,R,Newport Norse,2200087,
"Policy, Scrutiny & Customer Service",Customer Relations,Chief Executive's Unit,Complaints,Supplies & Services,Services,Professional And Specialist Fees,,12/10/2022,11060501,10127092,1437,R,REDACTED PERSONAL DATA,2201756,
Neighbourhood Services,Waste and Street Services,Communities & Place,Refuse & Cleansing Operations,Supplies & Services,Communications and Computing,ICT Support Costs ( Direct ),,28/10/2022,11068588,10127724,220,R,Innovative Safety Systems Limited,298303,
Standards,Early Years,Children & Young People,Expansion of Early Years Grant,Third Party Payments,Third Party,Third party payments NOT relating to goods or services,,19/10/2022,11063071,10127493,8400,R,Ladybirds at Llanvihangel,282761,
Schools Total,School Group 2 � Pupil Capacity 144-314,MCC Schools,Raglan CiW Primary School (VC),Premises,Cleaning and Domestic Supplies,Contract Cleaning - Premises (Direct),,28/10/2022,11068633,80089566,2751.96,R,Churchill Service Solutions,291141,
Information Communication Technology,Technology & Organisational Design,Resources,Digital Design & Innovation,Supplies & Services,Communications and Computing,Computer Licences,,04/10/2022,11059142,10126644,365.4,R,SRS Public,293522,
Community Care,INTEGRATED CARE FUND,Social Care and Health,COVID19 Carers Payments,Third Party Payments,Third Party,Third party payments NOT relating to goods or services,,19/10/2022,318245,0,98.67,R,Stepping Stones Care Services (South Wales) Ltd.,297496,
"Enterprise, Housing & Community Animation",Business Growth & Enterprise,Communities & Place,CELT,Supplies & Services,"Equipment, Furniture and Materials",Equipment Purchases,,04/10/2022,11058841,10126522,508,R,Zenith Print and Packaging Ltd,297963,
"Enterprise, Housing & Community Animation",Business Growth & Enterprise,Communities & Place,CELT,Supplies & Services,"Equipment, Furniture and Materials",Equipment Purchases,,04/10/2022,11058842,10126522,556,R,Zenith Print and Packaging Ltd,297963,
Schools Total,School Group 2 � Pupil Capacity 144-314,MCC Schools,Trellech Primary School,Supplies & Services,"Equipment, Furniture and Materials",Materials & Consumables.,,27/10/2022,11067697,80085260,36.6,R,ESPO,273847,
Schools Total,School Group 2 � Pupil Capacity 144-314,MCC Schools,Dewstow Primary School,Supplies & Services,"Equipment, Furniture and Materials",Materials & Consumables.,,10/10/2022,11060043,80085186,81.95,R,YPO,281293,
Schools Total,School Group 2 � Pupil Capacity 144-314,MCC Schools,Archbishop Rowan Williams CiW Primary School (VA),Supplies & Services,"Equipment, Furniture and Materials",Materials & Consumables.,,10/10/2022,11053493,80086694,6.99,R,RM Educational Resources Ltd,213173,
Schools Total,SCHGRP3 � School Group 3 � Pupil Capacity 315-500,MCC Schools,Undy Primary School,Supplies & Services,"Equipment, Furniture and Materials",Materials & Consumables.,,12/10/2022,11059856,80088899,35.79,R,Out Of The Ark Music,232292,
"Facilities, Fleet & Decarbonisation",Transport Department,Communities & Place,Transport,Transport,Direct Transport Costs,Spare Parts,,17/10/2022,11053800,0,137.46,R,Fast Fluid Power Ltd,256182,
"Facilities, Fleet & Decarbonisation",Home to School Transport Dept,Communities & Place,Home To School Transport,Transport,Direct Transport Costs,Vechicles Repairs and Maintenance,,28/10/2022,11068522,0,195,R,Bulwark Bus & Coach Eng. Ltd,203693,
"Facilities, Fleet & Decarbonisation",Home to School Transport Dept,Communities & Place,Home To School Transport,Transport,Direct Transport Costs,Vechicles Repairs and Maintenance,,28/10/2022,11068523,0,3346.08,R,Bulwark Bus & Coach Eng. Ltd,203693,
Schools Total,School Group 2 � Pupil Capacity 144-314,MCC Schools,Rogiet Primary School,Supplies & Services,"Equipment, Furniture and Materials",Materials & Consumables.,,10/10/2022,11060459,80088958,30,R,Chaplins Entertainment Limited,292537,
Schools Total,School Group 7 � Pupil Capacity 501-1800,MCC Schools,Monmouth Comprehensive,Third Party Payments,Third Party,School Meal Service,,10/10/2022,11060048,80085399,3828.7,R,Compass Services (UK) Limited,294553,
Children Services,Children Services Teams,Social Care and Health,Disabled Children,Third Party Payments,Third Party,Individual Needs,,10/10/2022,11059671,10123297,32700.28,R,Action For Children,288102,
"Facilities, Fleet & Decarbonisation",Transport Department,Communities & Place,Transport,Transport,Direct Transport Costs,Vehicle Collision Damage Costs,,17/10/2022,11061169,0,280,R,"Exhaust, Tyres & Batteries (Worcester) Ltd",286529,
"Facilities, Fleet & Decarbonisation",Transport Department,Communities & Place,Transport,Transport,Direct Transport Costs,Spare Parts,,17/10/2022,11058940,0,195.89,R,Dennis Eagle Limited,200102,
"Facilities, Fleet & Decarbonisation",Transport Department,Communities & Place,Transport,Transport,Direct Transport Costs,Tyres And Tubes,,17/10/2022,11061170,0,170.8,R,"Exhaust, Tyres & Batteries (Worcester) Ltd",286529,
Schools Total,School Group 2 � Pupil Capacity 144-314,MCC Schools,St Mary�s RC Primary School (VA),Supplies & Services,"Equipment, Furniture and Materials",Materials & Consumables.,,05/10/2022,11052824,80085101,99.99,R,Amazon Payments UK Limited,2200305,
Children Services,Children Services Other,Social Care and Health,Counsel Costs,Supplies & Services,Services,Legal Costs,,17/10/2022,11061500,10123566,1625,R,REDACTED PERSONAL DATA,2200971,
"Facilities, Fleet & Decarbonisation",Transport Department,Communities & Place,Transport,Transport,Direct Transport Costs,Spare Parts,,17/10/2022,11061182,0,29.8,R,Mon & Border Motor Factors Ltd,200544,
Children Services,Children Services Teams,Social Care and Health,Family Support and Protection Team,Third Party Payments,Third Party,Individual Needs,,10/10/2022,11058846,10126834,590.09,R,Richmond Nursing Agency Ltd,2203303,
Schools Total,School Group 2 � Pupil Capacity 144-314,MCC Schools,Thornwell Primary School,Premises,Ground Maintenance Costs,Grounds Maintenance - Direct.,,07/10/2022,11060307,80088301,600,R,Playwood,2203492,
Schools Total,School Group 2 � Pupil Capacity 144-314,MCC Schools,Kymin View Primary School,Employees,Direct Employee Expenses,Agency Staff,,25/10/2022,11065577,0,202.67,R,New Directions Education Ltd,233905,
Schools Total,School Group 2 � Pupil Capacity 144-314,MCC Schools,Llanfoist Fawr Primary School,Employees,Direct Employee Expenses,Agency Staff,,25/10/2022,11065578,0,202.67,R,New Directions Education Ltd,233905,
Schools Total,School Group 2 � Pupil Capacity 144-314,MCC Schools,Llanfoist Fawr Primary School,Employees,Direct Employee Expenses,Agency Staff,,25/10/2022,11065579,0,202.67,R,New Directions Education Ltd,233905,
Schools Total,School Group 2 � Pupil Capacity 144-314,MCC Schools,Llanfoist Fawr Primary School,Employees,Direct Employee Expenses,Agency Staff,,25/10/2022,11065580,0,202.67,R,New Directions Education Ltd,233905,
Schools Total,School Group 2 � Pupil Capacity 144-314,MCC Schools,Llanfoist Fawr Primary School,Employees,Direct Employee Expenses,Agency Staff,,25/10/2022,11065581,0,202.67,R,New Directions Education Ltd,233905,
Schools Total,School Group 7 � Pupil Capacity 501-1800,MCC Schools,King Henry VIII Comprehensive,Employees,Direct Employee Expenses,Agency Staff,,25/10/2022,11065576,0,115,R,New Directions Education Ltd,233905,
"Commercial, Corporate & landlord Services",Property Services & Facilities Management,Resources,Programmed Maintenance,Premises,"Repairs, Alterations & Maintenance of Buildings",Premises Repairs And Maintenance,,19/10/2022,11063024,90064668,200,R,D and C Utilities LTD,293511,
"Commercial, Corporate & landlord Services",Property Services & Facilities Management,Resources,Programmed Maintenance,Premises,"Repairs, Alterations & Maintenance of Buildings",Premises Repairs And Maintenance,,19/10/2022,11063026,90064667,200,R,D and C Utilities LTD,293511,
"Commercial, Corporate & landlord Services",Property Services & Facilities Management,Resources,Programmed Maintenance,Premises,"Repairs, Alterations & Maintenance of Buildings",Premises Repairs And Maintenance,,19/10/2022,11063027,90064666,150,R,D and C Utilities LTD,293511,
Schools Total,School Group 2 � Pupil Capacity 144-314,MCC Schools,Our Lady & St Michael's (OLSM) RC Primary School (VA),Employees,Direct Employee Expenses,Agency Staff,,06/10/2022,11059778,80088641,1714.95,R,Teaching Personnel,249395,
Neighbourhood Services,Waste and Street Services,Communities & Place,Refuse & Cleansing Operations,Third Party Payments,Third Party,General Contracts,,06/10/2022,11059673,10123648,19963.33,R,Blaenau Gwent County Borough Council,234013,
Schools Total,School Group 2 � Pupil Capacity 144-314,MCC Schools,Dewstow Primary School,Employees,Direct Employee Expenses,Agency Staff,,04/10/2022,11058898,80085605,405.38,R,Teaching Personnel,249395,
Schools Total,School Group 2 � Pupil Capacity 144-314,MCC Schools,Our Lady & St Michael's (OLSM) RC Primary School (VA),Employees,Direct Employee Expenses,Agency Staff,,25/10/2022,11065586,0,202.67,R,New Directions Education Ltd,233905,
Schools Total,School Group 2 � Pupil Capacity 144-314,MCC Schools,Our Lady & St Michael's (OLSM) RC Primary School (VA),Employees,Direct Employee Expenses,Agency Staff,,25/10/2022,11065587,0,202.67,R,New Directions Education Ltd,233905,
Schools Total,School Group 2 � Pupil Capacity 144-314,MCC Schools,Our Lady & St Michael's (OLSM) RC Primary School (VA),Employees,Direct Employee Expenses,Agency Staff,,25/10/2022,11065588,0,202.67,R,New Directions Education Ltd,233905,
Schools Total,School Group 2 � Pupil Capacity 144-314,MCC Schools,Llanfoist Fawr Primary School,Employees,Direct Employee Expenses,Agency Staff,,25/10/2022,11065582,0,202.67,R,New Directions Education Ltd,233905,
Schools Total,School Group 2 � Pupil Capacity 144-314,MCC Schools,Llanfoist Fawr Primary School,Employees,Direct Employee Expenses,Agency Staff,,25/10/2022,11065583,0,107.45,R,New Directions Education Ltd,233905,
Schools Total,School Group 2 � Pupil Capacity 144-314,MCC Schools,Llanfoist Fawr Primary School,Employees,Direct Employee Expenses,Agency Staff,,25/10/2022,11065584,0,107.45,R,New Directions Education Ltd,233905,
Schools Total,School Group 2 � Pupil Capacity 144-314,MCC Schools,Llanfoist Fawr Primary School,Employees,Direct Employee Expenses,Agency Staff,,25/10/2022,11065585,0,107.45,R,New Directions Education Ltd,233905,
Schools Total,SCHGRP3 � School Group 3 � Pupil Capacity 315-500,MCC Schools,Deri View Primary School,Employees,Direct Employee Expenses,Agency Staff,,07/10/2022,11060265,80088729,415.12,R,Apollo Teaching Services LTD,295494,
Schools Total,School Group 7 � Pupil Capacity 501-1800,MCC Schools,King Henry VIII Comprehensive,Employees,Direct Employee Expenses,Agency Staff,,14/10/2022,11061455,0,126.35,R,New Directions Education Ltd,233905,
Schools Total,School Group 2 � Pupil Capacity 144-314,MCC Schools,Goytre Fawr Primary School,Employees,Direct Employee Expenses,Agency Staff,,14/10/2022,11061453,0,107.45,R,New Directions Education Ltd,233905,
Schools Total,School Group 2 � Pupil Capacity 144-314,MCC Schools,Goytre Fawr Primary School,Employees,Direct Employee Expenses,Agency Staff,,14/10/2022,11061454,0,202.67,R,New Directions Education Ltd,233905,
Schools Total,SCHGRP3 � School Group 3 � Pupil Capacity 315-500,MCC Schools,Overmonnow Primary School,Employees,Direct Employee Expenses,Agency Staff,,14/10/2022,11061493,0,107.45,R,New Directions Education Ltd,233905,
Schools Total,SCHGRP3 � School Group 3 � Pupil Capacity 315-500,MCC Schools,Overmonnow Primary School,Employees,Direct Employee Expenses,Agency Staff,,14/10/2022,11061494,0,107.45,R,New Directions Education Ltd,233905,
Schools Total,SCHGRP3 � School Group 3 � Pupil Capacity 315-500,MCC Schools,Overmonnow Primary School,Employees,Direct Employee Expenses,Agency Staff,,14/10/2022,11061495,0,107.45,R,New Directions Education Ltd,233905,
Schools Total,SCHGRP3 � School Group 3 � Pupil Capacity 315-500,MCC Schools,Overmonnow Primary School,Employees,Direct Employee Expenses,Agency Staff,,14/10/2022,11061496,0,107.45,R,New Directions Education Ltd,233905,
Schools Total,School Group 2 � Pupil Capacity 144-314,MCC Schools,Archbishop Rowan Williams CiW Primary School (VA),Employees,Direct Employee Expenses,Agency Staff,,28/10/2022,11068481,80087218,3424.42,R,Teaching 4 Wales Ltd,267637,
Schools Total,School Group 2 � Pupil Capacity 144-314,MCC Schools,Archbishop Rowan Williams CiW Primary School (VA),Employees,Direct Employee Expenses,Agency Staff,,28/10/2022,11068482,80087219,990,R,Teaching Personnel,249395,
Schools Total,SCHGRP3 � School Group 3 � Pupil Capacity 315-500,MCC Schools,The Dell Primary School,Employees,Direct Employee Expenses,Agency Staff,,28/10/2022,11068491,80089118,916.72,R,Teaching 4 Wales Ltd,267637,
Schools Total,School Group 2 � Pupil Capacity 144-314,MCC Schools,Castle Park Primary School,Employees,Direct Employee Expenses,Agency Staff,,28/10/2022,11068477,80085682,1283.22,R,Teaching 4 Wales Ltd,267637,
Schools Total,SCHGRP3 � School Group 3 � Pupil Capacity 315-500,MCC Schools,Overmonnow Primary School,Employees,Direct Employee Expenses,Agency Staff,,25/10/2022,11065591,0,107.45,R,New Directions Education Ltd,233905,
Schools Total,School Group 2 � Pupil Capacity 144-314,MCC Schools,Thornwell Primary School,Supplies & Services,"Equipment, Furniture and Materials",Provisions.,,12/10/2022,11060547,80088043,59.82,R,Castell Howell Foods Ltd,261117,
Schools Total,School Group 2 � Pupil Capacity 144-314,MCC Schools,Thornwell Primary School,Supplies & Services,"Equipment, Furniture and Materials",Provisions.,,12/10/2022,11060547,80088043,-13.4,R,Castell Howell Foods Ltd,261117,
Schools Total,School Group 2 � Pupil Capacity 144-314,MCC Schools,Thornwell Primary School,Supplies & Services,"Equipment, Furniture and Materials",Provisions.,,12/10/2022,11060547,80088043,13.4,R,Castell Howell Foods Ltd,261117,
Schools Total,School Group 2 � Pupil Capacity 144-314,MCC Schools,Thornwell Primary School,Supplies & Services,"Equipment, Furniture and Materials",Provisions.,,19/10/2022,11063096,80088042,26.4,R,Total Produce(Cardiff),284131,
Schools Total,School Group 2 � Pupil Capacity 144-314,MCC Schools,Thornwell Primary School,Supplies & Services,"Equipment, Furniture and Materials",Provisions.,,19/10/2022,11063097,80088043,31.39,R,Castell Howell Foods Ltd,261117,
"Placemaking, Highways & Flooding",Highways Dev & Car Parks,Communities & Place,Traffic & Road Safety,Employees,Direct Employee Expenses,Agency Staff,,28/10/2022,11068570,10125422,1350.5,R,G2V Recruitment Group Limited T/A G2 Recruitment Solutions,2203578,
Schools Total,School Group 7 � Pupil Capacity 501-1800,MCC Schools,Chepstow School,Supplies & Services,"Equipment, Furniture and Materials",Provisions.,,17/10/2022,11061382,80086458,17.32,R,RM Educational Resources Ltd,213173,
Schools Total,School Group 2 � Pupil Capacity 144-314,MCC Schools,Ysgol Gymraeg Y Fenni,Supplies & Services,"Printing, Stationery and General Office Expenses",Photocopying.,,27/10/2022,11065678,80089457,457.44,R,Konica Minolta Bus. Solutions (UK) Ltd,200231,
Schools Total,School Group 7 � Pupil Capacity 501-1800,MCC Schools,Monmouth Comprehensive,Supplies & Services,"Printing, Stationery and General Office Expenses",Stationery,,27/10/2022,11067824,80089394,18.99,R,Amazon Payments UK Limited,2200305,
Schools Total,School Group 7 � Pupil Capacity 501-1800,MCC Schools,Monmouth Comprehensive,Supplies & Services,"Printing, Stationery and General Office Expenses",Stationery,,27/10/2022,11067824,80089394,3.27,R,Amazon Payments UK Limited,2200305,
Community Care,Community Care Team,Social Care and Health,Monmouth Adult Team,Third Party Payments,Third Party,Personal Care.,,28/10/2022,11068530,0,577.72,R,REDACTED PERSONAL DATA,2204358,
Community Care,Community Care Team,Social Care and Health,Monmouth Adult Team,Third Party Payments,Third Party,Personal Care.,,28/10/2022,11068530,0,65.16,R,REDACTED PERSONAL DATA,2204358,
Schools Total,School Group 7 � Pupil Capacity 501-1800,MCC Schools,Monmouth Comprehensive,Supplies & Services,"Printing, Stationery and General Office Expenses",Stationery,,10/10/2022,11058544,80088071,17.85,R,RM Educational Resources Ltd,213173,
Schools Total,School Group 2 � Pupil Capacity 144-314,MCC Schools,Thornwell Primary School,Supplies & Services,"Printing, Stationery and General Office Expenses",Stationery,,10/10/2022,11060473,80086601,5.16,R,RM Educational Resources Ltd,213173,
Neighbourhood Services,Highways,Communities & Place,Overhead - SWTRA / External,Supplies & Services,"Equipment, Furniture and Materials",Materials & Consumables.,,10/10/2022,11060412,818837,1662,R,Viatec UK,285221,
Community Care,Community Care Team,Social Care and Health,Abergavenny Adult Team,Third Party Payments,Third Party,Personal Care.,,12/10/2022,11060096,0,855.36,R,Abicare Services Ltd,280249,
Schools Total,School Group 2 � Pupil Capacity 144-314,MCC Schools,Trellech Primary School,Supplies & Services,"Printing, Stationery and General Office Expenses",Photocopying.,,27/10/2022,11067845,80085259,216.12,R,Konica Minolta Bus. Solutions (UK) Ltd,200231,
Schools Total,SCHGRP3 � School Group 3 � Pupil Capacity 315-500,MCC Schools,Overmonnow Primary School,Supplies & Services,"Printing, Stationery and General Office Expenses",Stationery,,06/10/2022,11059626,80088863,79.6,R,Lyreco Ltd,206626,
Schools Total,School Group 2 � Pupil Capacity 144-314,MCC Schools,Thornwell Primary School,Supplies & Services,"Printing, Stationery and General Office Expenses",Photocopying.,,10/10/2022,11060467,80088302,363.72,R,Konica Minolta Bus. Solutions (UK) Ltd,200231,
Schools Total,School Group 2 � Pupil Capacity 144-314,MCC Schools,Gilwern Primary School,Supplies & Services,"Printing, Stationery and General Office Expenses",Stationery,,28/10/2022,11068493,80089233,376.05,R,Complete Business Solutions Group Ltd,201017,
Schools Total,School Group 2 � Pupil Capacity 144-314,MCC Schools,Gilwern Primary School,Supplies & Services,"Printing, Stationery and General Office Expenses",Stationery,,28/10/2022,11068494,80089234,134.45,R,Complete Business Solutions Group Ltd,201017,
Community Care,Community Care Team,Social Care and Health,Abergavenny Adult Team,Third Party Payments,Third Party,Personal Care.,,03/10/2022,11058854,0,769.78,R,3 Circles Care Limited,2202613,
Community Care,Community Care Team,Social Care and Health,Abergavenny Adult Team,Third Party Payments,Third Party,Personal Care.,,03/10/2022,11058857,0,348.58,R,Allied Healthcare Services Limited,228252,
Community Care,Community Care Team,Social Care and Health,Abergavenny Adult Team,Third Party Payments,Third Party,Personal Care.,,03/10/2022,11058858,0,2410.42,R,Allied Healthcare Services Limited,228252,
Community Care,Community Care Team,Social Care and Health,Abergavenny Adult Team,Third Party Payments,Third Party,Personal Care.,,03/10/2022,11058859,0,970.28,R,Allied Healthcare Services Limited,228252,
Community Care,Community Care Team,Social Care and Health,Abergavenny Adult Team,Third Party Payments,Third Party,Personal Care.,,03/10/2022,11058860,0,1180.38,R,Allied Healthcare Services Limited,228252,
Schools Total,School Group 7 � Pupil Capacity 501-1800,MCC Schools,Monmouth Comprehensive,Supplies & Services,"Printing, Stationery and General Office Expenses",Stationery,,10/10/2022,11060326,80088923,7.58,R,Hope Education Ltd,200969,
Schools Total,School Group 7 � Pupil Capacity 501-1800,MCC Schools,Monmouth Comprehensive,Supplies & Services,"Printing, Stationery and General Office Expenses",Photocopying.,,10/10/2022,11059478,80085158,256.5,R,Springfield Business Papers,211309,
Schools Total,School Group 2 � Pupil Capacity 144-314,MCC Schools,Gilwern Primary School,Supplies & Services,"Printing, Stationery and General Office Expenses",Photocopying.,,12/10/2022,11060389,80086241,49.19,R,Konica Minolta Bus. Solutions (UK) Ltd,200231,
Community Care,Community Care Team,Social Care and Health,Abergavenny Adult Team,Third Party Payments,Third Party,Personal Care.,,03/10/2022,11058862,0,332.34,R,Allied Healthcare Services Limited,228252,
Community Care,Community Care Team,Social Care and Health,Abergavenny Adult Team,Third Party Payments,Third Party,Personal Care.,,03/10/2022,11058863,0,106.01,R,Allied Healthcare Services Limited,228252,
Community Care,Community Care Team,Social Care and Health,Abergavenny Adult Team,Third Party Payments,Third Party,Personal Care.,,03/10/2022,11058864,0,1891.86,R,Allied Healthcare Services Limited,228252,
Community Care,Community Care Team,Social Care and Health,Abergavenny Adult Team,Third Party Payments,Third Party,Personal Care.,,03/10/2022,11058866,0,1428.68,R,Allied Healthcare Services Limited,228252,
Community Care,Community Care Team,Social Care and Health,Abergavenny Adult Team,Third Party Payments,Third Party,Personal Care.,,03/10/2022,11058910,0,1750.55,R,Allied Healthcare Services Limited,228252,
Community Care,Community Care Team,Social Care and Health,Abergavenny Adult Team,Third Party Payments,Third Party,Personal Care.,,03/10/2022,11058927,0,385.82,R,Allied Healthcare Services Limited,228252,
Schools Total,SCHGRP3 � School Group 3 � Pupil Capacity 315-500,MCC Schools,Deri View Primary School,Supplies & Services,"Printing, Stationery and General Office Expenses",Stationery,,07/10/2022,11060244,80086014,0.55,R,RM Educational Resources Ltd,213173,
Schools Total,School Group 7 � Pupil Capacity 501-1800,MCC Schools,Caldicot School,Premises,"Repairs, Alterations & Maintenance of Buildings",Building Improvements / Maintenance,,04/10/2022,11058873,80088798,5000,R,Colorfoto Ltd,294742,
Schools Total,School Group 7 � Pupil Capacity 501-1800,MCC Schools,Caldicot School,Premises,"Repairs, Alterations & Maintenance of Buildings",Building Improvements / Maintenance,,04/10/2022,11058874,80088798,6000,R,Colorfoto Ltd,294742,
Schools Total,SCHGRP3 � School Group 3 � Pupil Capacity 315-500,MCC Schools,The Dell Primary School,Premises,"Repairs, Alterations & Maintenance of Buildings",Skip Hire,,06/10/2022,11059627,80088866,170,R,Woodstock Waste Disposal,200770,
Schools Total,School Group 7 � Pupil Capacity 501-1800,MCC Schools,Chepstow School,Supplies & Services,"Equipment, Furniture and Materials",Provisions.,,06/10/2022,11060065,80087663,170,R,Bob Woolmer Sales Limited,237667,
Neighbourhood Services,Waste and Street Services,Communities & Place,Grounds,Transport,Direct Transport Costs,Transportation of Supplies,,07/10/2022,11060200,10126506,50,R,R W Bearings Ltd,288915,
Schools Total,School Group 7 � Pupil Capacity 501-1800,MCC Schools,King Henry VIII Comprehensive,Employees,Indirect Employee Expenses,Replacement,,10/10/2022,11060564,80088976,227.3,R,Teaching Personnel,249395,
Schools Total,School Group 7 � Pupil Capacity 501-1800,MCC Schools,King Henry VIII Comprehensive,Premises,Catering,Catering Equipment,,12/10/2022,11060469,80088391,271.97,R,Nisbets,218815,
Schools Total,School Group 2 � Pupil Capacity 144-314,MCC Schools,Goytre Fawr Primary School,Premises,Cleaning and Domestic Supplies,Premises Pest Control,,12/10/2022,11060474,80086750,380,R,REDACTED PERSONAL DATA,2203680,
Children Services,Children Services Teams,Social Care and Health,Family Support and Protection Team,Employees,Direct Employee Expenses,Agency Staff,,28/10/2022,11068550,10122831,1766.72,R,Liquid Personnel,291502,
Children Services,Children Services Other,Social Care and Health,External Placements - CLA,Third Party Payments,Third Party,Nursing.,,10/10/2022,11060176,10123430,2829.07,R,Richmond Nursing Agency Ltd,2203303,
Children Services,Children Services Other,Social Care and Health,External Placements - CLA,Third Party Payments,Third Party,Nursing.,,10/10/2022,11060350,10124390,1567.8,R,ProHealthCare Limited,2203317,
Information Communication Technology,Technology & Organisational Design,Resources,Mobile Telephony,Supplies & Services,Communications and Computing,Mobile Telephones,,10/10/2022,11059762,10124554,142,R,EE Limited,251068,
Information Communication Technology,Technology & Organisational Design,Resources,Mobile Telephony,Supplies & Services,Communications and Computing,Mobile Telephones,,10/10/2022,11059763,10124554,142,R,EE Limited,251068,
Information Communication Technology,Technology & Organisational Design,Resources,Mobile Telephony,Supplies & Services,Communications and Computing,Mobile Telephones,,10/10/2022,11059764,10124554,142,R,EE Limited,251068,
Schools Total,School Group 7 � Pupil Capacity 501-1800,MCC Schools,King Henry VIII Comprehensive,Employees,Indirect Employee Expenses,Replacement,,10/10/2022,11060564,80088976,113.65,R,Teaching Personnel,249395,
Schools Total,School Group 7 � Pupil Capacity 501-1800,MCC Schools,King Henry VIII Comprehensive,Employees,Indirect Employee Expenses,Replacement,,10/10/2022,11060564,80088976,568.25,R,Teaching Personnel,249395,
Schools Total,School Group 7 � Pupil Capacity 501-1800,MCC Schools,King Henry VIII Comprehensive,Employees,Indirect Employee Expenses,Replacement,,10/10/2022,11060564,80088976,810.76,R,Teaching Personnel,249395,
Schools Total,School Group 7 � Pupil Capacity 501-1800,MCC Schools,King Henry VIII Comprehensive,Employees,Indirect Employee Expenses,Replacement,,10/10/2022,11060564,80088976,99.49,R,Teaching Personnel,249395,
Adult Services,Direct Care Residential,Social Care and Health,Severn View Residential,Supplies & Services,"Equipment, Furniture and Materials",Provisions.,,12/10/2022,11060346,10123221,474.17,R,Castell Howell Foods Ltd,261117,
"Commercial, Corporate & landlord Services",Asset Management,Resources,Solar Farm,Premises,"Repairs, Alterations & Maintenance of Buildings",Building Improvements / Maintenance,,12/10/2022,11060286,90065913,5000,R,Portskewett Community Council,294674,
Schools Total,School Group 7 � Pupil Capacity 501-1800,MCC Schools,Chepstow School,Premises,Catering,Catering Equipment,,19/10/2022,11060490,80085220,2073.65,R,Aramark Plc,203785,
Schools Total,School Group 7 � Pupil Capacity 501-1800,MCC Schools,Chepstow School,Premises,Catering,Catering Equipment,,19/10/2022,11060490,80085220,19655.5,R,Aramark Plc,203785,
Schools Total,School Group 7 � Pupil Capacity 501-1800,MCC Schools,Chepstow School,Premises,Catering,Catering Equipment,,19/10/2022,11060490,80085220,-19655.5,R,Aramark Plc,203785,
Schools Total,School Group 7 � Pupil Capacity 501-1800,MCC Schools,Chepstow School,Premises,Catering,Catering Equipment,,19/10/2022,11060490,80085220,-21872.39,R,Aramark Plc,203785,
Schools Total,School Group 7 � Pupil Capacity 501-1800,MCC Schools,Chepstow School,Premises,Catering,Catering Equipment,,19/10/2022,11060490,80085220,21872.39,R,Aramark Plc,203785,
"Enterprise, Housing & Community Animation",General Fund Housing,Communities & Place,Melin PSL (Private Sector Leasing),Premises,"Repairs, Alterations & Maintenance of Buildings",Building Improvements / Maintenance,,07/10/2022,11059049,10123400,375,R,Highmore Facilities Ltd,2200953,
"Enterprise, Housing & Community Animation",General Fund Housing,Communities & Place,Melin PSL (Private Sector Leasing),Premises,"Repairs, Alterations & Maintenance of Buildings",Building Improvements / Maintenance,,07/10/2022,11058928,10123400,175,R,Highmore Facilities Ltd,2200953,
"Enterprise, Housing & Community Animation",General Fund Housing,Communities & Place,Melin PSL (Private Sector Leasing),Premises,"Repairs, Alterations & Maintenance of Buildings",Building Improvements / Maintenance,,07/10/2022,11059047,10123400,175,R,Highmore Facilities Ltd,2200953,
Schools Total,School Group 7 � Pupil Capacity 501-1800,MCC Schools,King Henry VIII Comprehensive,Employees,Indirect Employee Expenses,Replacement,,12/10/2022,11060562,80088975,388.53,R,Back Office Support Services Ltd (Education Supply Pool),297350,
"Enterprise, Housing & Community Animation",General Fund Housing,Communities & Place,Melin PSL (Private Sector Leasing),Premises,"Repairs, Alterations & Maintenance of Buildings",Building Improvements / Maintenance,,07/10/2022,11059048,10123400,175,R,Highmore Facilities Ltd,2200953,
Schools Total,School Group 2 � Pupil Capacity 144-314,MCC Schools,Thornwell Primary School,Supplies & Services,"Equipment, Furniture and Materials",Small Plant & Tools.,,19/10/2022,11063105,80088790,19.6,R,Amazon Payments UK Limited,2200305,
Adult Services,Direct Care,Social Care and Health,Care at Home,Supplies & Services,Communications and Computing,Telephone - Call Charges,,28/10/2022,11067868,10124307,1095.37,R,Vodafone,296168,
Schools Total,School Group 7 � Pupil Capacity 501-1800,MCC Schools,Caldicot School,Premises,"Repairs, Alterations & Maintenance of Buildings",Building Improvements / Maintenance,,04/10/2022,11058882,80088798,5000,R,Colorfoto Ltd,294742,
Schools Total,School Group 7 � Pupil Capacity 501-1800,MCC Schools,Chepstow School,Supplies & Services,"Equipment, Furniture and Materials",Provisions.,,19/10/2022,11059918,80088624,1,R,Lyreco Ltd,206626,
Schools Total,School Group 7 � Pupil Capacity 501-1800,MCC Schools,Chepstow School,Supplies & Services,"Equipment, Furniture and Materials",Provisions.,,19/10/2022,11059918,80088624,1,R,Lyreco Ltd,206626,
Schools Total,School Group 7 � Pupil Capacity 501-1800,MCC Schools,Chepstow School,Supplies & Services,"Equipment, Furniture and Materials",Provisions.,,19/10/2022,11059918,80088624,1.52,R,Lyreco Ltd,206626,
Schools Total,School Group 7 � Pupil Capacity 501-1800,MCC Schools,Chepstow School,Supplies & Services,"Equipment, Furniture and Materials",Provisions.,,19/10/2022,11059918,80088624,1,R,Lyreco Ltd,206626,
Schools Total,School Group 7 � Pupil Capacity 501-1800,MCC Schools,Chepstow School,Supplies & Services,"Equipment, Furniture and Materials",Provisions.,,19/10/2022,11059943,80086279,6.25,R,RM Educational Resources Ltd,213173,
Schools Total,School Group 7 � Pupil Capacity 501-1800,MCC Schools,Chepstow School,Supplies & Services,"Equipment, Furniture and Materials",Provisions.,,19/10/2022,11059943,80086279,56.26,R,RM Educational Resources Ltd,213173,
Finance & Business Devlopment,Attractions,MonLife Directorate,Caldicot Castle & Country Park,Supplies & Services,"Equipment, Furniture and Materials",Provisions.,,19/10/2022,11060939,10122502,59.66,R,Castell Howell Foods Ltd,261117,
Community Care,Community Care Team,Social Care and Health,Mental Health Care Team,Third Party Payments,Third Party,Personal Care.,,27/10/2022,11067919,0,2160,R,Community Care Services,2201043,
Community Care,Community Care Team,Social Care and Health,Mental Health Care Team,Third Party Payments,Third Party,Personal Care.,,27/10/2022,11067892,0,560,R,Home Instead Senior Care,2202031,
Community Care,ADULT DISABILITY SERVICES,Social Care and Health,CLDT,Third Party Payments,Third Party,Personal Care.,,03/10/2022,11059008,0,5416.12,R,REDACTED PERSONAL DATA,298280,
Community Care,ADULT DISABILITY SERVICES,Social Care and Health,CLDT,Third Party Payments,Third Party,Personal Care.,,03/10/2022,11059009,0,5332.2,R,Homeleigh Care Homes Ltd,265750,
Community Care,ADULT DISABILITY SERVICES,Social Care and Health,CLDT,Third Party Payments,Third Party,Personal Care.,,03/10/2022,11059010,0,5772.12,R,Homeleigh Care Homes Ltd,265750,
Community Care,ADULT DISABILITY SERVICES,Social Care and Health,CLDT,Third Party Payments,Third Party,Personal Care.,,03/10/2022,11059011,0,5772.12,R,Homeleigh Care Homes Ltd,265750,
Community Care,ADULT DISABILITY SERVICES,Social Care and Health,CLDT,Third Party Payments,Third Party,Personal Care.,,03/10/2022,11059012,0,5772.12,R,Homeleigh Care Homes Ltd,265750,
Schools Total,School Group 7 � Pupil Capacity 501-1800,MCC Schools,Caldicot School,Premises,"Repairs, Alterations & Maintenance of Buildings",Building Improvements / Maintenance,,04/10/2022,11058883,80088798,5000,R,Colorfoto Ltd,294742,
Schools Total,School Group 7 � Pupil Capacity 501-1800,MCC Schools,Caldicot School,Premises,"Repairs, Alterations & Maintenance of Buildings",Building Improvements / Maintenance,,04/10/2022,11058884,80088798,5000,R,Colorfoto Ltd,294742,
Capital Division,Capital Dept,Capital,Capital Programme,Premises,"Repairs, Alterations & Maintenance of Buildings",Building Improvements / Maintenance,,06/10/2022,11059810,90065326,17500,C,Ambassador Fire & Security LTD,295878,
Community Care,INTEGRATED CARE FUND,Social Care and Health,Intermediate Care Fund,Employees,Direct Employee Expenses,Agency Staff,,04/10/2022,11058917,10123917,1164.37,R,Liquid Personnel,291502,
Finance & Business Devlopment,Attractions,MonLife Directorate,Tourist Information Centres,Supplies & Services,Catering,Cafe,,19/10/2022,11059972,10122761,99.33,R,Castell Howell Foods Ltd,261117,
Finance & Business Devlopment,Attractions,MonLife Directorate,Tourist Information Centres,Supplies & Services,Catering,Cafe,,19/10/2022,11059972,10122761,-14.9,R,Castell Howell Foods Ltd,261117,
Finance & Business Devlopment,Attractions,MonLife Directorate,Tourist Information Centres,Supplies & Services,Catering,Cafe,,25/10/2022,11063387,10122761,131.32,R,Castell Howell Foods Ltd,261117,
Finance & Business Devlopment,Attractions,MonLife Directorate,Tourist Information Centres,Supplies & Services,Catering,Cafe,,25/10/2022,11063387,10122761,94.29,R,Castell Howell Foods Ltd,261117,
Finance & Business Devlopment,Attractions,MonLife Directorate,Tourist Information Centres,Supplies & Services,Catering,Cafe,,25/10/2022,11063387,10122761,-94.29,R,Castell Howell Foods Ltd,261117,
Finance & Business Devlopment,Attractions,MonLife Directorate,Caldicot Castle & Country Park,Premises,Cleaning and Domestic Supplies,Premises Pest Control,,25/10/2022,11064860,10123101,208,R,P&P Pest Control,200833,
Capital Division,Capital Dept,Capital,Capital Programme,Premises,"Repairs, Alterations & Maintenance of Buildings",Building Improvements / Maintenance,,25/10/2022,11064605,90062387,36823.65,C,Kier Construction,2203709,
Capital Division,Capital Dept,Capital,Capital Programme,Premises,"Repairs, Alterations & Maintenance of Buildings",Building Improvements / Maintenance,,25/10/2022,11064606,90066001,26511.5,C,Kier Construction,2203709,
Capital Division,Capital Dept,Capital,Capital Programme,Premises,"Repairs, Alterations & Maintenance of Buildings",Building Improvements / Maintenance,,25/10/2022,11064628,10123443,253924.88,C,Lovell Partnerships Ltd,2203682,
Schools Total,School Group 7 � Pupil Capacity 501-1800,MCC Schools,Chepstow School,Supplies & Services,"Equipment, Furniture and Materials",Provisions.,,06/10/2022,11060065,80087663,124,R,Bob Woolmer Sales Limited,237667,
Children Services,Children Services Teams,Social Care and Health,Early Help and Assessment Team,Employees,Direct Employee Expenses,Agency Staff,,21/10/2022,11061646,10126378,1555.6,R,Liquid Personnel,291502,
Children Services,Children Services Teams,Social Care and Health,Early Help and Assessment Team,Employees,Direct Employee Expenses,Agency Staff,,21/10/2022,11061647,10126378,1489.9,R,Liquid Personnel,291502,
"Leisure, Youth & Outdoor Adventure",Leisure Services,MonLife Directorate,Caldicot Leisure Centre,Supplies & Services,Catering,Cafe,,24/10/2022,11061670,10127434,31.76,R,J P Lennard Ltd,208666,
"Leisure, Youth & Outdoor Adventure",Leisure Services,MonLife Directorate,Caldicot Leisure Centre,Supplies & Services,Catering,Cafe,,24/10/2022,11061670,10127434,15.8,R,J P Lennard Ltd,208666,
Schools Total,SCHGRP3 � School Group 3 � Pupil Capacity 315-500,MCC Schools,Undy Primary School,Supplies & Services,"Equipment, Furniture and Materials",Cleaning Materials.,,24/10/2022,11062110,80088275,132,R,Newhall Janitorial Ltd,200912,
Schools Total,School Group 7 � Pupil Capacity 501-1800,MCC Schools,King Henry VIII Comprehensive,Employees,Indirect Employee Expenses,Replacement,,10/10/2022,11060565,80088977,103.3,R,TeacherActive,297314,
Schools Total,School Group 7 � Pupil Capacity 501-1800,MCC Schools,King Henry VIII Comprehensive,Employees,Indirect Employee Expenses,Replacement,,10/10/2022,11060566,80088977,253.7,R,TeacherActive,297314,
Schools Total,School Group 7 � Pupil Capacity 501-1800,MCC Schools,King Henry VIII Comprehensive,Employees,Indirect Employee Expenses,Replacement,,10/10/2022,11060566,80088977,121.65,R,TeacherActive,297314,
Finance & Business Devlopment,Attractions,MonLife Directorate,Tourist Information Centres,Supplies & Services,Catering,Cafe,,19/10/2022,11059972,10122761,14.9,R,Castell Howell Foods Ltd,261117,
Capital Division,Capital Dept,Capital,Capital Programme,Premises,"Repairs, Alterations & Maintenance of Buildings",Building Improvements / Maintenance,,04/10/2022,11059211,90062161,21005.32,C,A.J Quinn Building Contractors Ltd,290506,
Capital Division,Capital Dept,Capital,Capital Programme,Premises,"Repairs, Alterations & Maintenance of Buildings",Building Improvements / Maintenance,,04/10/2022,11059212,90062162,15359.16,C,A.J Quinn Building Contractors Ltd,290506,
Capital Division,Capital Dept,Capital,Capital Programme,Premises,"Repairs, Alterations & Maintenance of Buildings",Building Improvements / Maintenance,,04/10/2022,11059225,90062397,9663,C,A.J Quinn Building Contractors Ltd,290506,
Capital Division,Capital Dept,Capital,Capital Programme,Premises,"Repairs, Alterations & Maintenance of Buildings",Building Improvements / Maintenance,,04/10/2022,11059227,90062995,86480.37,C,A.J Quinn Building Contractors Ltd,290506,
Capital Division,Capital Dept,Capital,Capital Programme,Premises,"Repairs, Alterations & Maintenance of Buildings",Building Improvements / Maintenance,,04/10/2022,11059255,90065125,4346,C,EFS Systems (UK) Ltd,2200607,
Children Services,Children Services Teams,Social Care and Health,Family Support and Protection Team,Employees,Direct Employee Expenses,Agency Staff,,06/10/2022,11059976,10122834,1353.6,R,NonStop Recruitment Ltd.,2201394,
Schools Total,School Group 2 � Pupil Capacity 144-314,MCC Schools,Gilwern Primary School,Premises,"Repairs, Alterations & Maintenance of Buildings",Building Improvements / Maintenance,,12/10/2022,11060634,80088532,4000,R,Dixons,291209,
Schools Total,School Group 7 � Pupil Capacity 501-1800,MCC Schools,Caldicot School,Transport,Contract Hire and Operating Leases,Vehicle Hire Charge,,12/10/2022,11060642,80089018,500,R,Ferris Holidays Ltd,279695,
Adult Services,Direct Care Residential,Social Care and Health,Severn View Residential,Supplies & Services,"Equipment, Furniture and Materials",Cleaning Materials.,,12/10/2022,11060736,10123163,862.83,R,Newhall Janitorial Ltd,200912,
Schools Total,School Group 2 � Pupil Capacity 144-314,MCC Schools,Cantref Primary School,Transport,Contract Hire and Operating Leases,Vehicle Hire Charge,,25/10/2022,11065322,80088743,220,R,Celtic Minibuses Ltd,275707,
Schools Total,School Group 7 � Pupil Capacity 501-1800,MCC Schools,Caldicot School,Employees,Direct Employee Expenses,Agency Staff,,28/10/2022,11068626,80089556,569.3,R,Teaching Personnel,249395,
Schools Total,School Group 7 � Pupil Capacity 501-1800,MCC Schools,Caldicot School,Employees,Direct Employee Expenses,Agency Staff,,28/10/2022,11068626,80089556,455.44,R,Teaching Personnel,249395,
Public Protection,Public Protection,Social Care and Health,Trading Standards Wales,Supplies & Services,Services,Professional And Specialist Fees,,19/10/2022,11062941,0,310.2,R,Lysandra Wildlife Consultancy Ltd,2204323,
Schools Total,School Group 2 � Pupil Capacity 144-314,MCC Schools,Usk CiW Primary School (VC),Supplies & Services,Services,Training Charges,,19/10/2022,11062954,80089259,67,R,Thrive,2200844,
Schools Total,School Group 7 � Pupil Capacity 501-1800,MCC Schools,Caldicot School,Supplies & Services,"Printing, Stationery and General Office Expenses",Book Purchases,,04/10/2022,11058871,80088802,7.35,R,Amazon Payments UK Limited,2200305,
Schools Total,School Group 7 � Pupil Capacity 501-1800,MCC Schools,Caldicot School,Employees,Direct Employee Expenses,Agency Staff,,04/10/2022,11058875,80088799,625,R,Highgrade Recruitment Ltd,294722,
Schools Total,School Group 7 � Pupil Capacity 501-1800,MCC Schools,Caldicot School,Employees,Direct Employee Expenses,Agency Staff,,04/10/2022,11058877,80088801,341.58,R,Teaching Personnel,249395,
Schools Total,School Group 7 � Pupil Capacity 501-1800,MCC Schools,Caldicot School,Employees,Direct Employee Expenses,Agency Staff,,04/10/2022,11058877,80088801,569.3,R,Teaching Personnel,249395,
Schools Total,School Group 7 � Pupil Capacity 501-1800,MCC Schools,Caldicot School,Employees,Direct Employee Expenses,Agency Staff,,04/10/2022,11058877,80088801,569.3,R,Teaching Personnel,249395,
Finance & Business Devlopment,Learning,MonLife Directorate,Learning,Supplies & Services,"Equipment, Furniture and Materials",Materials & Consumables.,,27/10/2022,11063403,10127107,289.87,R,Baker Ross Ltd,206623,
Neighbourhood Services,Waste and Street Services,Communities & Place,Grounds,Supplies & Services,Communications and Computing,IT Hardware,,27/10/2022,11063405,10127313,20,R,SRS Public,293522,
Schools Total,School Group 7 � Pupil Capacity 501-1800,MCC Schools,Caldicot School,Employees,Direct Employee Expenses,Agency Staff,,04/10/2022,11058877,80088801,569.3,R,Teaching Personnel,249395,
Schools Total,School Group 7 � Pupil Capacity 501-1800,MCC Schools,Caldicot School,Employees,Direct Employee Expenses,Agency Staff,,04/10/2022,11058877,80088801,569.3,R,Teaching Personnel,249395,
Schools Total,School Group 7 � Pupil Capacity 501-1800,MCC Schools,Caldicot School,Employees,Direct Employee Expenses,Agency Staff,,04/10/2022,11058877,80088801,569.3,R,Teaching Personnel,249395,
Schools Total,School Group 7 � Pupil Capacity 501-1800,MCC Schools,Caldicot School,Employees,Direct Employee Expenses,Agency Staff,,04/10/2022,11058877,80088801,569.3,R,Teaching Personnel,249395,
Schools Total,School Group 7 � Pupil Capacity 501-1800,MCC Schools,Caldicot School,Employees,Direct Employee Expenses,Agency Staff,,04/10/2022,11058877,80088801,341.58,R,Teaching Personnel,249395,
Schools Total,School Group 7 � Pupil Capacity 501-1800,MCC Schools,Caldicot School,Employees,Direct Employee Expenses,Agency Staff,,04/10/2022,11058877,80088801,569.3,R,Teaching Personnel,249395,
Schools Total,School Group 7 � Pupil Capacity 501-1800,MCC Schools,Caldicot School,Employees,Direct Employee Expenses,Agency Staff,,04/10/2022,11058877,80088801,569.3,R,Teaching Personnel,249395,
Schools Total,School Group 7 � Pupil Capacity 501-1800,MCC Schools,Caldicot School,Employees,Direct Employee Expenses,Agency Staff,,04/10/2022,11058877,80088801,135.21,R,Teaching Personnel,249395,
Schools Total,School Group 7 � Pupil Capacity 501-1800,MCC Schools,Caldicot School,Employees,Direct Employee Expenses,Agency Staff,,04/10/2022,11058877,80088801,432.28,R,Teaching Personnel,249395,
Schools Total,School Group 7 � Pupil Capacity 501-1800,MCC Schools,Caldicot School,Employees,Direct Employee Expenses,Agency Staff,,04/10/2022,11058877,80088801,1013.45,R,Teaching Personnel,249395,
Schools Total,SCHGRP3 � School Group 3 � Pupil Capacity 315-500,MCC Schools,The Dell Primary School,Supplies & Services,Communications and Computing,IT Hardware,,06/10/2022,11059481,80088180,360.15,R,SRS Public,293522,
"Placemaking, Highways & Flooding",Highways Dev & Car Parks,Communities & Place,Transport Policy,Supplies & Services,Communications and Computing,IT Software,,06/10/2022,11059449,10123094,677,R,Metric Group Ltd,211133,
Schools Total,School Group 2 � Pupil Capacity 144-314,MCC Schools,Thornwell Primary School,Supplies & Services,Services,Professional And Specialist Fees,,10/10/2022,11060464,80088871,790,R,Biffy Ltd,2204304,
Children Services,Children Services Teams,Social Care and Health,Long Term Support Team,Premises,"Repairs, Alterations & Maintenance of Buildings",Building Improvements / Maintenance,,12/10/2022,11060223,10127250,60,R,Phs Group,208483,
Schools Total,School Group 7 � Pupil Capacity 501-1800,MCC Schools,Caldicot School,Employees,Direct Employee Expenses,Agency Staff,,28/10/2022,11068626,80089556,569.3,R,Teaching Personnel,249395,
Schools Total,School Group 7 � Pupil Capacity 501-1800,MCC Schools,Caldicot School,Employees,Direct Employee Expenses,Agency Staff,,28/10/2022,11068626,80089556,341.58,R,Teaching Personnel,249395,
Schools Total,School Group 7 � Pupil Capacity 501-1800,MCC Schools,Caldicot School,Employees,Direct Employee Expenses,Agency Staff,,28/10/2022,11068626,80089556,569.3,R,Teaching Personnel,249395,
Schools Total,School Group 7 � Pupil Capacity 501-1800,MCC Schools,Caldicot School,Employees,Direct Employee Expenses,Agency Staff,,28/10/2022,11068626,80089556,569.3,R,Teaching Personnel,249395,
Schools Total,School Group 7 � Pupil Capacity 501-1800,MCC Schools,Caldicot School,Employees,Direct Employee Expenses,Agency Staff,,28/10/2022,11068626,80089556,569.3,R,Teaching Personnel,249395,
Schools Total,School Group 7 � Pupil Capacity 501-1800,MCC Schools,Caldicot School,Employees,Direct Employee Expenses,Agency Staff,,28/10/2022,11068626,80089556,569.3,R,Teaching Personnel,249395,
Information Communication Technology,Technology & Organisational Design,Resources,Digital Design & Innovation,Supplies & Services,Communications and Computing,Computer Licences,,04/10/2022,11059142,10126644,71.19,R,SRS Public,293522,
Capital Division,Capital Dept,Capital,Capital Programme,Premises,Rents,Rents/Hire Of Premises.,,24/10/2022,11061843,10126862,140,C,Bulwark Community Centre,204387,
"Enterprise, Housing & Community Animation",General Fund Housing,Communities & Place,Melin PSL (Private Sector Leasing),Premises,Rents,Rents/Hire Of Premises.,,24/10/2022,11061115,10118947,1418.04,R,Melin Homes Ltd,232888,
Schools Total,SCHGRP3 � School Group 3 � Pupil Capacity 315-500,MCC Schools,Undy Primary School,Premises,Cleaning and Domestic Supplies,Toilet Requisites,,24/10/2022,11062110,80088275,462.4,R,Newhall Janitorial Ltd,200912,
Children Services,Children Services Teams,Social Care and Health,Family Support and Protection Team,Supplies & Services,Services,Professional And Specialist Fees,,24/10/2022,11065101,10122828,324.5,R,DNA Legal,2201220,
Schools Total,School Group 7 � Pupil Capacity 501-1800,MCC Schools,Caldicot School,Supplies & Services,Communications and Computing,Equipment Servicing,,24/10/2022,11063124,80089272,498,R,Harding Scientific Instruments Ltd,267786,
Democratic Services,Democratic Services,People & Governance,Electoral Registration,Supplies & Services,Communications and Computing,Postages,,24/10/2022,11061970,10127504,13.92,R,Royal Mail,234171,
Children Services,Children Services Other,Social Care and Health,Counsel Costs,Supplies & Services,Services,Professional And Specialist Fees,,10/10/2022,11060353,10125163,420,R,Reynolds Confidential Ltd,257526,
Children Services,Children Services Other,Social Care and Health,External Placements - CLA,Supplies & Services,Services,Professional And Specialist Fees,,10/10/2022,11059985,10123290,21232.31,R,Richmond Nursing Agency Ltd,2203303,
Public Protection,"Registrations B, D and M",Social Care and Health,"Registrations B,D & M",Supplies & Services,"Equipment, Furniture and Materials",Advertising,,24/10/2022,11064955,10127496,415.8,R,Newsquest Media Group,214546,
"Enterprise, Housing & Community Animation",General Fund Housing,Communities & Place,Lodgings Scheme,Premises,Rents,Rents/Hire Of Premises.,,24/10/2022,11065218,0,553.57,R,REDACTED PERSONAL DATA,2201256,
"Enterprise, Housing & Community Animation",General Fund Housing,Communities & Place,Lodgings Scheme,Premises,Rents,Rents/Hire Of Premises.,,24/10/2022,11065219,0,553.57,R,REDACTED PERSONAL DATA,2201256,
"Enterprise, Housing & Community Animation",General Fund Housing,Communities & Place,Lodgings Scheme,Premises,Rents,Rents/Hire Of Premises.,,24/10/2022,11065220,0,553.57,R,REDACTED PERSONAL DATA,2201256,
"Enterprise, Housing & Community Animation",General Fund Housing,Communities & Place,Lodgings Scheme,Premises,Rents,Rents/Hire Of Premises.,,24/10/2022,11065221,0,553.57,R,REDACTED PERSONAL DATA,2201256,
Children Services,Children Services Other,Social Care and Health,Counsel Costs,Supplies & Services,Services,Professional And Specialist Fees,,06/10/2022,11060004,10125163,540,R,Reynolds Confidential Ltd,257526,
Children Services,Children Services Teams,Social Care and Health,Placement & Support Team,Supplies & Services,Services,Private Nursery Fees,,06/10/2022,11060002,10124852,108.33,R,Little Stars Nursery,2202179,
"Enterprise, Housing & Community Animation",General Fund Housing,Communities & Place,Lodgings Scheme,Premises,Rents,Rents/Hire Of Premises.,,24/10/2022,11065222,0,278.57,R,Highmore Investments Ltd,2203559,
"Enterprise, Housing & Community Animation",General Fund Housing,Communities & Place,Lodgings Scheme,Premises,Rents,Rents/Hire Of Premises.,,24/10/2022,11065223,0,442.86,R,Highmore Investments Ltd,2203559,
"Enterprise, Housing & Community Animation",General Fund Housing,Communities & Place,Lodgings Scheme,Premises,Rents,Rents/Hire Of Premises.,,24/10/2022,11065224,0,996.43,R,Kardinale Investments Ltd,2203493,
"Enterprise, Housing & Community Animation",General Fund Housing,Communities & Place,Lodgings Scheme,Premises,Rents,Rents/Hire Of Premises.,,24/10/2022,11065225,0,996.43,R,Kardinale Investments Ltd,2203493,
"Enterprise, Housing & Community Animation",General Fund Housing,Communities & Place,Lodgings Scheme,Premises,Rents,Rents/Hire Of Premises.,,24/10/2022,11065226,0,996.43,R,Kardinale Investments Ltd,2203493,
"Enterprise, Housing & Community Animation",General Fund Housing,Communities & Place,Lodgings Scheme,Premises,Rents,Rents/Hire Of Premises.,,24/10/2022,11065227,0,996.43,R,Kardinale Investments Ltd,2203493,
Schools Total,School Group 2 � Pupil Capacity 144-314,MCC Schools,Trellech Primary School,Premises,Cleaning and Domestic Supplies,Toilet Requisites,,19/10/2022,11060241,80085257,10.95,R,Newhall Janitorial Ltd,200912,
Schools Total,School Group 2 � Pupil Capacity 144-314,MCC Schools,Thornwell Primary School,Supplies & Services,"Equipment, Furniture and Materials",Display Materials,,04/10/2022,11059182,80087966,29.16,R,Amazon Payments UK Limited,2200305,
Adult Services,Grant Schemes SHS,Social Care and Health,Training,Supplies & Services,"Equipment, Furniture and Materials",Marketing Materials,,25/10/2022,11064661,10127591,533,R,more than print,2204339,
"Placemaking, Highways & Flooding",Highways Dev & Car Parks,Communities & Place,Traffic & Road Safety,Supplies & Services,"Equipment, Furniture and Materials",Advertising,,25/10/2022,11064637,10126814,378,R,Tindle Newspapers Wales & The Borders Ltd,241905,
Schools Total,School Group 7 � Pupil Capacity 501-1800,MCC Schools,Caldicot School,Supplies & Services,Grants and Subscriptions,Subscriptions,,12/10/2022,11060569,80088993,330,R,eteach.com,250275,
"Policy, Scrutiny & Customer Service",Policy And Partnerships,Chief Executive's Unit,Performance and Data,Supplies & Services,Services,Professional And Specialist Fees,,10/10/2022,11060372,10127240,320,R,lemondog creative,2203865,
"Enterprise, Housing & Community Animation",Community & Partnerships Development,Communities & Place,Community & Partnership Development,Supplies & Services,Services,Professional And Specialist Fees,,12/10/2022,11060628,10127316,35460,R,Bridges Community Centre,245594,
Control Division,Control Dept,Control,Payroll Monthly 2 (Schools),Current Liabilities,Short Term Creditors,Resource Link Payments,,25/10/2022,11064882,0,2809,R,Kiddivouchers,291625,
Schools Total,SCHGRP3 � School Group 3 � Pupil Capacity 315-500,MCC Schools,Magor CiW Primary School (VA),Supplies & Services,Grants and Subscriptions,Subscriptions,,12/10/2022,11060818,80088886,556,R,Juniper Education Services Limited,296749,
"Enterprise, Housing & Community Animation",General Fund Housing,Communities & Place,Lodgings Scheme,Premises,Rents,Rents/Hire Of Premises.,,24/10/2022,11065228,0,996.43,R,Kardinale Investments Ltd,2203493,
Children Services,Children Services Other,Social Care and Health,External Placements - CLA,Third Party Payments,Third Party,Residential.,,10/10/2022,11059986,10123294,3714.28,R,Rainbow Therapeutic,298568,
Finance & Business Devlopment,Attractions,MonLife Directorate,Old Station Tintern,Supplies & Services,"Equipment, Furniture and Materials",Provisions.,,25/10/2022,11064881,10122436,74.5,R,Castell Howell Foods Ltd,261117,
Finance & Business Devlopment,Attractions,MonLife Directorate,Old Station Tintern,Supplies & Services,"Equipment, Furniture and Materials",Provisions.,,25/10/2022,11064881,10122436,567.48,R,Castell Howell Foods Ltd,261117,
Finance & Business Devlopment,Attractions,MonLife Directorate,Caldicot Castle & Country Park,Supplies & Services,"Equipment, Furniture and Materials",Provisions.,,25/10/2022,11063205,10122502,-22.35,R,Castell Howell Foods Ltd,261117,
Finance & Business Devlopment,Attractions,MonLife Directorate,Caldicot Castle & Country Park,Supplies & Services,"Equipment, Furniture and Materials",Provisions.,,25/10/2022,11063205,10122502,22.35,R,Castell Howell Foods Ltd,261117,
Information Communication Technology,Technology & Organisational Design,Resources,Mobile Telephony,Supplies & Services,"Equipment, Furniture and Materials",Small Plant & Tools.,,06/10/2022,11059770,10127049,433,R,Amazon  Payments UK Ltd (Punchout),2202048,
Schools Total,School Group 1 � Pupil Capacity 1-143,MCC Schools,Llanvihangel Crucorney Primary School,Supplies & Services,"Equipment, Furniture and Materials",Materials & Consumables.,,06/10/2022,11059827,80087678,5.6,R,RM Educational Resources Ltd,213173,
Schools Total,School Group 7 � Pupil Capacity 501-1800,MCC Schools,Caldicot School,Supplies & Services,"Equipment, Furniture and Materials",Materials & Consumables.,,06/10/2022,11059779,80088697,48,R,Driad Education/Specialist Crafts Ltd,286389,
Schools Total,School Group 7 � Pupil Capacity 501-1800,MCC Schools,King Henry VIII Comprehensive,Supplies & Services,"Equipment, Furniture and Materials",Materials & Consumables.,,12/10/2022,11060541,80087198,243.4,R,Peters Library Service Ltd,208753,
Schools Total,School Group 7 � Pupil Capacity 501-1800,MCC Schools,King Henry VIII Comprehensive,Supplies & Services,"Equipment, Furniture and Materials",Materials & Consumables.,,12/10/2022,11060541,80087198,3.6,R,Peters Library Service Ltd,208753,
Schools Total,School Group 7 � Pupil Capacity 501-1800,MCC Schools,King Henry VIII Comprehensive,Supplies & Services,"Equipment, Furniture and Materials",Equipment Purchases,,12/10/2022,11060551,80088768,7.14,R,Amazon Payments UK Limited,2200305,
"Placemaking, Highways & Flooding",Highways Dev & Car Parks,Communities & Place,Transport Policy,Employees,Indirect Employee Expenses,Staff Welfare,,04/10/2022,11059134,10126173,50,R,Redacted Data,274452,
Adult Services,Direct Care Residential,Social Care and Health,Severn View Residential,Employees,Indirect Employee Expenses,Staff Welfare,,04/10/2022,11059135,10126174,50,R,Redacted Data,274452,
Standards,Early Years,Children & Young People,Flying Start Grant,Employees,Indirect Employee Expenses,Staff Welfare,,04/10/2022,11059136,10126185,150,R,Redacted Data,274452,
"Enterprise, Housing & Community Animation",Business Growth & Enterprise,Communities & Place,Employment & Skills,Employees,Indirect Employee Expenses,Staff Welfare,,04/10/2022,11059137,10126571,100,R,Redacted Data,274452,
Community Care,Community Care Team,Social Care and Health,Mental Health Care Team,Employees,Indirect Employee Expenses,Staff Welfare,,04/10/2022,11059133,10126171,50,R,Redacted Data,274452,
Schools Total,School Group 7 � Pupil Capacity 501-1800,MCC Schools,King Henry VIII Comprehensive,Supplies & Services,"Equipment, Furniture and Materials",Equipment Purchases,,04/10/2022,11059107,80088811,97.5,R,The Curriculum Press,241821,
Standards,Early Years,Children & Young People,Flying Start Grant,Employees,Indirect Employee Expenses,Staff Welfare,,04/10/2022,11059145,10126764,50,R,Redacted Data,274452,
Neighbourhood Services,Waste and Street Services,Communities & Place,Grounds,Employees,Indirect Employee Expenses,Staff Welfare,,04/10/2022,11059143,10126663,100,R,Redacted Data,274452,
Neighbourhood Services,Waste and Street Services,Communities & Place,Refuse & Cleansing Operations,Employees,Indirect Employee Expenses,Staff Welfare,,04/10/2022,11059139,10126582,100,R,Redacted Data,274452,
Children Services,Children Services Teams,Social Care and Health,Early Help and Assessment Team,Employees,Indirect Employee Expenses,Staff Welfare,,04/10/2022,11059144,10126683,50,R,Redacted Data,274452,
"Commercial, Corporate & landlord Services",Asset Management,Resources,St David�s Day Fund (Grant),Employees,Indirect Employee Expenses,Staff Welfare,,04/10/2022,11059141,10126614,50,R,Redacted Data,274452,
Schools Total,School Group 2 � Pupil Capacity 144-314,MCC Schools,Llantilio Pertholey CiW Primary School (VC),Supplies & Services,"Equipment, Furniture and Materials",Materials & Consumables.,,17/10/2022,11060775,80085089,4.99,R,Amazon Payments UK Limited,2200305,
Resources,Support Services,Children & Young People,Assistance to Pupils,Supplies & Services,Grants and Subscriptions,Grants Payable,,03/10/2022,11059213,0,225,R,Pupil Development Grant,990016,
Resources,Support Services,Children & Young People,Assistance to Pupils,Supplies & Services,Grants and Subscriptions,Grants Payable,,03/10/2022,11059214,0,225,R,Pupil Development Grant,990016,
Resources,Support Services,Children & Young People,Assistance to Pupils,Supplies & Services,Grants and Subscriptions,Grants Payable,,03/10/2022,11059215,0,225,R,Pupil Development Grant,990016,
Resources,Support Services,Children & Young People,Assistance to Pupils,Supplies & Services,Grants and Subscriptions,Grants Payable,,03/10/2022,11059216,0,225,R,Pupil Development Grant,990016,
Resources,Support Services,Children & Young People,Assistance to Pupils,Supplies & Services,Grants and Subscriptions,Grants Payable,,03/10/2022,11059217,0,225,R,Pupil Development Grant,990016,
Resources,Support Services,Children & Young People,Assistance to Pupils,Supplies & Services,Grants and Subscriptions,Grants Payable,,03/10/2022,11059218,0,225,R,Pupil Development Grant,990016,
Resources,Support Services,Children & Young People,Assistance to Pupils,Supplies & Services,Grants and Subscriptions,Grants Payable,,03/10/2022,11059219,0,225,R,Pupil Development Grant,990016,
Resources,Support Services,Children & Young People,Assistance to Pupils,Supplies & Services,Grants and Subscriptions,Grants Payable,,03/10/2022,11059220,0,225,R,Pupil Development Grant,990016,
Resources,Support Services,Children & Young People,Assistance to Pupils,Supplies & Services,Grants and Subscriptions,Grants Payable,,03/10/2022,11059221,0,225,R,Pupil Development Grant,990016,
Schools Total,School Group 7 � Pupil Capacity 501-1800,MCC Schools,Caldicot School,Supplies & Services,"Equipment, Furniture and Materials",Materials & Consumables.,,19/10/2022,11060905,80089099,8.32,R,Amazon Payments UK Limited,2200305,
Schools Total,School Group 7 � Pupil Capacity 501-1800,MCC Schools,King Henry VIII Comprehensive,Supplies & Services,"Equipment, Furniture and Materials",Equipment Purchases,,12/10/2022,11060552,80088768,10.71,R,Amazon Payments UK Limited,2200305,
Schools Total,School Group 7 � Pupil Capacity 501-1800,MCC Schools,Caldicot School,Supplies & Services,Expenses,Exam Fees (Schools),,12/10/2022,11060570,80088994,3230.4,R,Pearson Education LTD,236736,
Schools Total,School Group 7 � Pupil Capacity 501-1800,MCC Schools,Caldicot School,Supplies & Services,Expenses,Exam Fees (Schools),,12/10/2022,11060570,80088994,3130.7,R,Pearson Education LTD,236736,
Schools Total,School Group 2 � Pupil Capacity 144-314,MCC Schools,Ysgol Gymraeg Y Fenni,Supplies & Services,"Equipment, Furniture and Materials",Equipment Purchases,,25/10/2022,11065518,80089111,10.16,R,Amazon Payments UK Limited,2200305,
Schools Total,School Group 7 � Pupil Capacity 501-1800,MCC Schools,Chepstow School,Supplies & Services,"Equipment, Furniture and Materials",Materials & Consumables.,,17/10/2022,11061383,80086935,10,R,RM Educational Resources Ltd,213173,
"Facilities, Fleet & Decarbonisation",Catering Services,Communities & Place,Schools Catering,Supplies & Services,"Equipment, Furniture and Materials",Materials & Consumables.,,10/10/2022,11059973,10122781,270,R,REDACTED PERSONAL DATA,2202976,
Community Care,Community Care Team,Social Care and Health,Mental Health Care Team,Third Party Payments,Third Party,Personal Care.,,24/10/2022,11065154,0,1944,R,Abicare Services Ltd,280249,
Finance & Business Devlopment,Attractions,MonLife Directorate,Old Station Tintern,Supplies & Services,"Equipment, Furniture and Materials",Provisions.,,19/10/2022,11060107,10122436,343.13,R,Castell Howell Foods Ltd,261117,
Finance & Business Devlopment,Attractions,MonLife Directorate,Old Station Tintern,Supplies & Services,"Equipment, Furniture and Materials",Provisions.,,19/10/2022,11060107,10122436,-118.63,R,Castell Howell Foods Ltd,261117,
Finance & Business Devlopment,Attractions,MonLife Directorate,Old Station Tintern,Supplies & Services,"Equipment, Furniture and Materials",Provisions.,,19/10/2022,11060107,10122436,118.63,R,Castell Howell Foods Ltd,261117,
Finance & Business Devlopment,Attractions,MonLife Directorate,Caldicot Castle & Country Park,Supplies & Services,"Equipment, Furniture and Materials",Provisions.,,25/10/2022,11063205,10122502,79.85,R,Castell Howell Foods Ltd,261117,
Finance & Business Devlopment,Attractions,MonLife Directorate,Old Station Tintern,Supplies & Services,"Equipment, Furniture and Materials",Provisions.,,25/10/2022,11061779,10122436,450.67,R,Castell Howell Foods Ltd,261117,
Finance & Business Devlopment,Attractions,MonLife Directorate,Old Station Tintern,Supplies & Services,"Equipment, Furniture and Materials",Provisions.,,25/10/2022,11061779,10122436,-74.5,R,Castell Howell Foods Ltd,261117,
Finance & Business Devlopment,Attractions,MonLife Directorate,Old Station Tintern,Supplies & Services,"Equipment, Furniture and Materials",Provisions.,,25/10/2022,11061779,10122436,74.5,R,Castell Howell Foods Ltd,261117,
Schools Total,School Group 7 � Pupil Capacity 501-1800,MCC Schools,Caldicot School,Supplies & Services,Expenses,Exam Fees (Schools),,07/10/2022,11059860,80088903,553.1,R,WJEC CBAC Limited,248050,
Schools Total,School Group 7 � Pupil Capacity 501-1800,MCC Schools,Caldicot School,Supplies & Services,"Equipment, Furniture and Materials",Materials & Consumables.,,07/10/2022,11059871,80088905,9.98,R,Amazon Payments UK Limited,2200305,
Schools Total,School Group 7 � Pupil Capacity 501-1800,MCC Schools,Caldicot School,Supplies & Services,"Equipment, Furniture and Materials",Materials & Consumables.,,07/10/2022,11059873,80088905,158.32,R,Amazon Payments UK Limited,2200305,
Neighbourhood Services,Highways,Communities & Place,Overhead - Mon Highways,Supplies & Services,"Equipment, Furniture and Materials",Small Plant & Tools.,,10/10/2022,11060411,10125890,160,R,South Wales Locksmiths,200105,
Schools Total,School Group 2 � Pupil Capacity 144-314,MCC Schools,Ysgol Gymraeg Y Fenni,Supplies & Services,"Equipment, Furniture and Materials",Equipment Purchases,,25/10/2022,11065516,80089111,27.35,R,Amazon Payments UK Limited,2200305,
Schools Total,School Group 2 � Pupil Capacity 144-314,MCC Schools,Ysgol Gymraeg Y Fenni,Supplies & Services,"Equipment, Furniture and Materials",Equipment Purchases,,25/10/2022,11065517,80089111,21.85,R,Amazon Payments UK Limited,2200305,
Schools Total,School Group 2 � Pupil Capacity 144-314,MCC Schools,Ysgol Gymraeg Y Fenni,Supplies & Services,"Equipment, Furniture and Materials",Equipment Purchases,,25/10/2022,11065517,80089111,-11.98,R,Amazon Payments UK Limited,2200305,
Schools Total,School Group 2 � Pupil Capacity 144-314,MCC Schools,Ysgol Gymraeg Y Fenni,Supplies & Services,"Equipment, Furniture and Materials",Equipment Purchases,,25/10/2022,11065517,80089111,11.98,R,Amazon Payments UK Limited,2200305,
Children Services,Children Services Other,Social Care and Health,External Placements - CLA,Third Party Payments,Third Party,Fostering/Adoption Allowances,,10/10/2022,11059987,10123385,3726.3,R,National Fostering Agency,294165,
Schools Total,School Group 2 � Pupil Capacity 144-314,MCC Schools,Thornwell Primary School,Supplies & Services,"Equipment, Furniture and Materials",Equipment Purchases,,19/10/2022,11063101,80088790,10.84,R,Amazon Payments UK Limited,2200305,
Schools Total,School Group 2 � Pupil Capacity 144-314,MCC Schools,Thornwell Primary School,Supplies & Services,"Equipment, Furniture and Materials",Equipment Purchases,,19/10/2022,11063102,80088790,6.66,R,Amazon Payments UK Limited,2200305,
Schools Total,School Group 2 � Pupil Capacity 144-314,MCC Schools,Thornwell Primary School,Supplies & Services,"Equipment, Furniture and Materials",Equipment Purchases,,19/10/2022,11063104,80088790,6.66,R,Amazon Payments UK Limited,2200305,
Children Services,Children Services Other,Social Care and Health,External Placements - CLA,Third Party Payments,Third Party,Fostering/Adoption Allowances,,10/10/2022,11059990,10123559,3237.73,R,Family Fostering Partners,2203501,
Schools Total,School Group 7 � Pupil Capacity 501-1800,MCC Schools,Caldicot School,Employees,Indirect Employee Expenses,Staff Welfare,,04/10/2022,11059062,10125231,100,R,Redacted Data,274452,
Schools Total,SCHGRP3 � School Group 3 � Pupil Capacity 315-500,MCC Schools,Overmonnow Primary School,Employees,Indirect Employee Expenses,Staff Welfare,,04/10/2022,11059052,10124235,50,R,Redacted Data,274452,
Schools Total,SCHGRP3 � School Group 3 � Pupil Capacity 315-500,MCC Schools,Overmonnow Primary School,Employees,Indirect Employee Expenses,Staff Welfare,,04/10/2022,11059061,10125188,50,R,Redacted Data,274452,
People,People Services,People & Governance,Payroll & System Support,Employees,Indirect Employee Expenses,Staff Welfare,,04/10/2022,11059059,10125113,50,R,Redacted Data,274452,
Neighbourhood Services,Waste and Street Services,Communities & Place,Grounds,Employees,Indirect Employee Expenses,Staff Welfare,,04/10/2022,11059060,10125186,50,R,Redacted Data,274452,
Partnerships,Children Services Teams,Social Care and Health,Youth Offending Team,Employees,Indirect Employee Expenses,Staff Welfare,,04/10/2022,11059051,10123692,100,R,Redacted Data,274452,
Neighbourhood Services,Highways,Communities & Place,Gully emptying,Transport,Contract Hire and Operating Leases,Plant Hire Charge,,19/10/2022,11063129,818711,10800,R,Wales Environmental Ltd (formerly Cardiff Drain Cleaning),211832,
Neighbourhood Services,Highways,Communities & Place,Gully emptying,Transport,Contract Hire and Operating Leases,Plant Hire Charge,,19/10/2022,11063129,818711,1920,R,Wales Environmental Ltd (formerly Cardiff Drain Cleaning),211832,
Schools Total,School Group 7 � Pupil Capacity 501-1800,MCC Schools,Chepstow School,Supplies & Services,"Equipment, Furniture and Materials",Materials & Consumables.,,06/10/2022,11059849,80088880,6.66,R,Amazon Payments UK Limited,2200305,
Schools Total,School Group 7 � Pupil Capacity 501-1800,MCC Schools,Chepstow School,Supplies & Services,"Equipment, Furniture and Materials",Materials & Consumables.,,06/10/2022,11059849,80088880,14.14,R,Amazon Payments UK Limited,2200305,
